Workbook

Sheet Introduction
B3: =Benchmarking!C1&" Data" -> 2022-23 Data | E3: ="Kent LA Schools' Benchmarking Data "&Benchmarking!C1 -> Kent LA Schools' Benchmarking Data 2022-23
E5: THIS BENCHMARKING SHEET IS FOR SECONDARY SCHOOLS ONLY
E7: ="The Benchmarking spreadsheet shows the income and expenditure information for the "&Benchmarking!C1&" financial year at subjective account level i.e. CFR codes. It shows all revenue income and expenditure including standards funds." -> The Benchmarking spreadsheet shows the income and expenditure information for the 2022-23 financial year at subjective account level i.e. CFR codes. It shows all revenue income and expenditure including standards funds.
E9: Capital income and expenditure is excluded.
E11: Enter your DFE number in the green shaded box, you can enter the last four digits or use the drop down box.
E13: The green drop down boxes allow you to select up to three Schools to benchmark against, the grey area allows you to benchmark against the average of the Schools you selected
E16: The sheet is formatted to print on one page.
E18: CFR = Consistent Financial Reporting

Sheet Benchmarking
B1: Subjective Analysis of | C1: 2022-23 | D1: Income and Expenditure Compared to Group and Phase Averages
E3: 11-16 | F3: Post 16 | H3: Select a school to Benchmark against | L3: Select a school to Benchmark against | P3: Select a school to Benchmark against
B4: Enter last 4 digits of your DfE No. | D4: Pupil Roll | E4: =IF(ISERROR(VLOOKUP(C4,'2022-23 Data'!$A$3:$C$20,3,0)),"",VLOOKUP(C4,'2022-23 Data'!$A$3:$C$20,3,0)+VLOOKUP(C4,'2022-23 Data'!$A$3:$E$20,5,0)) ->  | F4: =IF(ISERROR(VLOOKUP(C4,'2022-23 Data'!$A$3:$D$20,4,0)),"",VLOOKUP(C4,'2022-23 Data'!$A$3:$D$20,4,0)) -> 
I5: 11-16 | J5: Post 16 | M5: 11-16 | N5: Post 16 | Q5: 11-16 | R5: Post 16
B6: =B1&C1&D1 -> Subjective Analysis of 2022-23 Income and Expenditure Compared to Group and Phase Averages | H6: =IF(ISERROR(SUMIF(schools,H4,dfenums)),"",SUMIF(schools,H4,dfenums)) -> 0 | I6: =IF(ISERROR(VLOOKUP(H6,'2022-23 Data'!$A$3:$C$20,3,0)),"",VLOOKUP(H6,'2022-23 Data'!$A$3:$C$20,3,0)) ->  | J6: =IF(ISERROR(VLOOKUP(H6,'2022-23 Data'!$A$3:$D$20,4,0)),"",VLOOKUP(H6,'2022-23 Data'!$A$3:$D$20,4,0)) ->  | L6: =IF(ISERROR(SUMIF(schools,L4,dfenums)),"",SUMIF(schools,L4,dfenums)) -> 0 | M6: =IF(ISERROR(VLOOKUP(L6,'2022-23 Data'!$A$3:$C$20,3,0)),"",VLOOKUP(L6,'2022-23 Data'!$A$3:$C$20,3,0)) ->  | N6: =IF(ISERROR(VLOOKUP(L6,'2022-23 Data'!$A$3:$D$20,4,0)),"",VLOOKUP(L6,'2022-23 Data'!$A$3:$D$20,4,0)) ->  | P6: =IF(ISERROR(SUMIF(schools,P4,dfenums)),"",SUMIF(schools,P4,dfenums)) -> 0 | Q6: =IF(ISERROR(VLOOKUP(P6,'2022-23 Data'!$A$3:$C$20,3,0)),"",VLOOKUP(P6,'2022-23 Data'!$A$3:$C$20,3,0)) ->  | R6: =IF(ISERROR(VLOOKUP(P6,'2022-23 Data'!$A$3:$D$20,4,0)),"",VLOOKUP(P6,'2022-23 Data'!$A$3:$D$20,4,0)) -> 
H7: =IF(H4="","",IF(C4=H6,"This is your school","")) ->  | L7: =IF(L4="","",IF(L6=H6,"You have already selected this school",IF(L6=C4,"This is your school",""))) ->  | P7: =IF(P4="","",IF(OR(P6=L6,P6=H6),"You have already selected this school",IF(P6=C4,"This is your school",""))) ->  | T7: All Kent Secondary Schools
B9: =IF(C4="","",VLOOKUP($C$4,'2022-23 Data'!A3:B280,2,0)) ->  | D9: total Exp. / Inc. | E9: amount per Pupil | F9: % of total Exp. | H9: total Exp. / Inc. | I9: amount per Pupil | J9: % of total Exp. | L9: total Exp. / Inc. | M9: amount per Pupil | N9: % of total Exp. | P9: total Exp. / Inc. | Q9: amount per Pupil | R9: % of total Exp. | T9: amount per Pupil | U9: % of total Exp. | V9: % of Exp / total inc.
D10: £ | E10: £ | F10: % | H10: £ | I10: £ | J10: % | L10: £ | M10: £ | N10: % | P10: £ | Q10: £ | R10: % | T10: £ | U10: % | V10: %
B12: EXPENDITURE
B13: Teaching staff | C13: E01 | D13: =IF(ISERROR(INDEX('2022-23 Data'!$B$3:$BJ$20,MATCH($C$4,dfenums,0),MATCH($C13,'2022-23 Data'!$B$2:$BJ$2,0))),"",INDEX('2022-23 Data'!$B$3:$BJ$20,MATCH($C$4,dfenums,0),MATCH($C13,'2022-23 Data'!$B$2:$BJ$2,0))) ->  | E13: =IF($C$4>0,D13/($E$4+$F$4),"") ->  | F13: =IF($C$4>0,D13/$D$46,"") ->  | H13: =IF(ISERROR(INDEX('2022-23 Data'!$B$3:$BJ$20,MATCH($H$6,dfenums,0),MATCH($C13,'2022-23 Data'!$B$2:$BJ$2,0))),"",INDEX('2022-23 Data'!$B$3:$BJ$20,MATCH($H$6,dfenums,0),MATCH($C13,'2022-23 Data'!$B$2:$BJ$2,0))) ->  | I13: =IF($H$6>0,H13/($I$6+$J$6),"") ->  | J13: =IF($H$6>0,H13/$H$46,"") ->  | L13: =IF(ISERROR(INDEX('2022-23 Data'!$B$3:$BJ$20,MATCH($L$6,dfenums,0),MATCH($C13,'2022-23 Data'!$B$2:$BJ$2,0))),"",INDEX('2022-23 Data'!$B$3:$BJ$20,MATCH($L$6,dfenums,0),MATCH($C13,'2022-23 Data'!$B$2:$BJ$2,0))) ->  | M13: =IF($L$6>0,L13/($M$6+$N$6),"") ->  | N13: =IF($L$6>0,L13/$L$46,"") ->  | P13: =IF(ISERROR(INDEX('2022-23 Data'!$B$3:$BJ$20,MATCH($P$6,dfenums,0),MATCH($C13,'2022-23 Data'!$B$2:$BJ$2,0))),"",INDEX('2022-23 Data'!$B$3:$BJ$20,MATCH($P$6,dfenums,0),MATCH($C13,'2022-23 Data'!$B$2:$BJ$2,0))) ->  | Q13: =IF($P$6>0,P13/($Q$6+$R$6),"") ->  | R13: =IF($P$6>0,P13/$P$46,"") ->  | T13: =IF(ISERROR(SUM('2022-23 Data'!F$3:F$20)/SUM('2022-23 Data'!$C$3:$D$20)),"",SUM('2022-23 Data'!F$3:F$20)/SUM('2022-23 Data'!$C$3:$D$20)) -> 3712.340914 | U13: =IF(ISERROR(T13/$T$46),"",T13/$T$46) -> 0.5291971397 | V13: =IF(ISERROR(T13/-$T$72),"",T13/-$T$72) -> 0.3489323144
B14: Supply teaching staff | C14: E02 | D14: =IF(ISERROR(INDEX('2022-23 Data'!$B$3:$BJ$20,MATCH($C$4,dfenums,0),MATCH($C14,'2022-23 Data'!$B$2:$BJ$2,0))),"",INDEX('2022-23 Data'!$B$3:$BJ$20,MATCH($C$4,dfenums,0),MATCH($C14,'2022-23 Data'!$B$2:$BJ$2,0))) ->  | H14: =IF(ISERROR(INDEX('2022-23 Data'!$B$3:$BJ$20,MATCH($H$6,dfenums,0),MATCH($C14,'2022-23 Data'!$B$2:$BJ$2,0))),"",INDEX('2022-23 Data'!$B$3:$BJ$20,MATCH($H$6,dfenums,0),MATCH($C14,'2022-23 Data'!$B$2:$BJ$2,0))) ->  | I14: =IF($H$6>0,H14/($I$6+$J$6),"") ->  | J14: =IF($H$6>0,H14/$H$46,"") ->  | L14: =IF(ISERROR(INDEX('2022-23 Data'!$B$3:$BJ$20,MATCH($L$6,dfenums,0),MATCH($C14,'2022-23 Data'!$B$2:$BJ$2,0))),"",INDEX('2022-23 Data'!$B$3:$BJ$20,MATCH($L$6,dfenums,0),MATCH($C14,'2022-23 Data'!$B$2:$BJ$2,0))) ->  | M14: =IF($L$6>0,L14/($M$6+$N$6),"") ->  | N14: =IF($L$6>0,L14/$L$46,"") ->  | P14: =IF(ISERROR(INDEX('2022-23 Data'!$B$3:$BJ$20,MATCH($P$6,dfenums,0),MATCH($C14,'2022-23 Data'!$B$2:$BJ$2,0))),"",INDEX('2022-23 Data'!$B$3:$BJ$20,MATCH($P$6,dfenums,0),MATCH($C14,'2022-23 Data'!$B$2:$BJ$2,0))) ->  | Q14: =IF($P$6>0,P14/($Q$6+$R$6),"") ->  | R14: =IF($P$6>0,P14/$P$46,"") ->  | T14: =IF(ISERROR(SUM('2022-23 Data'!G$3:G$20)/SUM('2022-23 Data'!$C$3:$D$20)),"",SUM('2022-23 Data'!G$3:G$20)/SUM('2022-23 Data'!$C$3:$D$20)) -> 5.21593437 | U14: =IF(ISERROR(T14/$T$46),"",T14/$T$46) -> 0.0007435355786 | V14: =IF(ISERROR(T14/-$T$72),"",T14/-$T$72) -> 0.0004902588672
B15: Education support staff | C15: E03 | D15: =IF(ISERROR(INDEX('2022-23 Data'!$B$3:$BJ$20,MATCH($C$4,dfenums,0),MATCH($C15,'2022-23 Data'!$B$2:$BJ$2,0))),"",INDEX('2022-23 Data'!$B$3:$BJ$20,MATCH($C$4,dfenums,0),MATCH($C15,'2022-23 Data'!$B$2:$BJ$2,0))) ->  | H15: =IF(ISERROR(INDEX('2022-23 Data'!$B$3:$BJ$20,MATCH($H$6,dfenums,0),MATCH($C15,'2022-23 Data'!$B$2:$BJ$2,0))),"",INDEX('2022-23 Data'!$B$3:$BJ$20,MATCH($H$6,dfenums,0),MATCH($C15,'2022-23 Data'!$B$2:$BJ$2,0))) ->  | L15: =IF(ISERROR(INDEX('2022-23 Data'!$B$3:$BJ$20,MATCH($L$6,dfenums,0),MATCH($C15,'2022-23 Data'!$B$2:$BJ$2,0))),"",INDEX('2022-23 Data'!$B$3:$BJ$20,MATCH($L$6,dfenums,0),MATCH($C15,'2022-23 Data'!$B$2:$BJ$2,0))) ->  | P15: =IF(ISERROR(INDEX('2022-23 Data'!$B$3:$BJ$20,MATCH($P$6,dfenums,0),MATCH($C15,'2022-23 Data'!$B$2:$BJ$2,0))),"",INDEX('2022-23 Data'!$B$3:$BJ$20,MATCH($P$6,dfenums,0),MATCH($C15,'2022-23 Data'!$B$2:$BJ$2,0))) ->  | T15: =IF(ISERROR(SUM('2022-23 Data'!H$3:H$20)/SUM('2022-23 Data'!$C$3:$D$20)),"",SUM('2022-23 Data'!H$3:H$20)/SUM('2022-23 Data'!$C$3:$D$20)) -> 700.1715914 | U15: 0.09981001531 | V15: 0.06581089923
B16: Premises staff | C16: E04 | D16: =IF(ISERROR(INDEX('2022-23 Data'!$B$3:$BJ$20,MATCH($C$4,dfenums,0),MATCH($C16,'2022-23 Data'!$B$2:$BJ$2,0))),"",INDEX('2022-23 Data'!$B$3:$BJ$20,MATCH($C$4,dfenums,0),MATCH($C16,'2022-23 Data'!$B$2:$BJ$2,0))) ->  | H16: =IF(ISERROR(INDEX('2022-23 Data'!$B$3:$BJ$20,MATCH($H$6,dfenums,0),MATCH($C16,'2022-23 Data'!$B$2:$BJ$2,0))),"",INDEX('2022-23 Data'!$B$3:$BJ$20,MATCH($H$6,dfenums,0),MATCH($C16,'2022-23 Data'!$B$2:$BJ$2,0))) ->  | L16: =IF(ISERROR(INDEX('2022-23 Data'!$B$3:$BJ$20,MATCH($L$6,dfenums,0),MATCH($C16,'2022-23 Data'!$B$2:$BJ$2,0))),"",INDEX('2022-23 Data'!$B$3:$BJ$20,MATCH($L$6,dfenums,0),MATCH($C16,'2022-23 Data'!$B$2:$BJ$2,0))) ->  | P16: =IF(ISERROR(INDEX('2022-23 Data'!$B$3:$BJ$20,MATCH($P$6,dfenums,0),MATCH($C16,'2022-23 Data'!$B$2:$BJ$2,0))),"",INDEX('2022-23 Data'!$B$3:$BJ$20,MATCH($P$6,dfenums,0),MATCH($C16,'2022-23 Data'!$B$2:$BJ$2,0))) ->  | T16: =IF(ISERROR(SUM('2022-23 Data'!I$3:I$20)/SUM('2022-23 Data'!$C$3:$D$20)),"",SUM('2022-23 Data'!I$3:I$20)/SUM('2022-23 Data'!$C$3:$D$20)) -> 135.5996376 | U16: 0.01932983582 | V16: 0.01274535299
B17: Administrative and clerical staff | C17: E05 | D17: =IF(ISERROR(INDEX('2022-23 Data'!$B$3:$BJ$20,MATCH($C$4,dfenums,0),MATCH($C17,'2022-23 Data'!$B$2:$BJ$2,0))),"",INDEX('2022-23 Data'!$B$3:$BJ$20,MATCH($C$4,dfenums,0),MATCH($C17,'2022-23 Data'!$B$2:$BJ$2,0))) ->  | H17: =IF(ISERROR(INDEX('2022-23 Data'!$B$3:$BJ$20,MATCH($H$6,dfenums,0),MATCH($C17,'2022-23 Data'!$B$2:$BJ$2,0))),"",INDEX('2022-23 Data'!$B$3:$BJ$20,MATCH($H$6,dfenums,0),MATCH($C17,'2022-23 Data'!$B$2:$BJ$2,0))) ->  | L17: =IF(ISERROR(INDEX('2022-23 Data'!$B$3:$BJ$20,MATCH($L$6,dfenums,0),MATCH($C17,'2022-23 Data'!$B$2:$BJ$2,0))),"",INDEX('2022-23 Data'!$B$3:$BJ$20,MATCH($L$6,dfenums,0),MATCH($C17,'2022-23 Data'!$B$2:$BJ$2,0))) ->  | P17: =IF(ISERROR(INDEX('2022-23 Data'!$B$3:$BJ$20,MATCH($P$6,dfenums,0),MATCH($C17,'2022-23 Data'!$B$2:$BJ$2,0))),"",INDEX('2022-23 Data'!$B$3:$BJ$20,MATCH($P$6,dfenums,0),MATCH($C17,'2022-23 Data'!$B$2:$BJ$2,0))) ->  | T17: =IF(ISERROR(SUM('2022-23 Data'!J$3:J$20)/SUM('2022-23 Data'!$C$3:$D$20)),"",SUM('2022-23 Data'!J$3:J$20)/SUM('2022-23 Data'!$C$3:$D$20)) -> 346.6689854 | U17: 0.04941793863 | V17: 0.03258429497
B18: Catering staff | C18: E06 | D18: =IF(ISERROR(INDEX('2022-23 Data'!$B$3:$BJ$20,MATCH($C$4,dfenums,0),MATCH($C18,'2022-23 Data'!$B$2:$BJ$2,0))),"",INDEX('2022-23 Data'!$B$3:$BJ$20,MATCH($C$4,dfenums,0),MATCH($C18,'2022-23 Data'!$B$2:$BJ$2,0))) ->  | H18: =IF(ISERROR(INDEX('2022-23 Data'!$B$3:$BJ$20,MATCH($H$6,dfenums,0),MATCH($C18,'2022-23 Data'!$B$2:$BJ$2,0))),"",INDEX('2022-23 Data'!$B$3:$BJ$20,MATCH($H$6,dfenums,0),MATCH($C18,'2022-23 Data'!$B$2:$BJ$2,0))) ->  | L18: =IF(ISERROR(INDEX('2022-23 Data'!$B$3:$BJ$20,MATCH($L$6,dfenums,0),MATCH($C18,'2022-23 Data'!$B$2:$BJ$2,0))),"",INDEX('2022-23 Data'!$B$3:$BJ$20,MATCH($L$6,dfenums,0),MATCH($C18,'2022-23 Data'!$B$2:$BJ$2,0))) ->  | P18: =IF(ISERROR(INDEX('2022-23 Data'!$B$3:$BJ$20,MATCH($P$6,dfenums,0),MATCH($C18,'2022-23 Data'!$B$2:$BJ$2,0))),"",INDEX('2022-23 Data'!$B$3:$BJ$20,MATCH($P$6,dfenums,0),MATCH($C18,'2022-23 Data'!$B$2:$BJ$2,0))) ->  | T18: =IF(ISERROR(SUM('2022-23 Data'!K$3:K$20)/SUM('2022-23 Data'!$C$3:$D$20)),"",SUM('2022-23 Data'!K$3:K$20)/SUM('2022-23 Data'!$C$3:$D$20)) -> 31.44321808 | U18: 0.004482255659 | V18: 0.002955427615
B19: Cost of other staff | C19: E07 | D19: =IF(ISERROR(INDEX('2022-23 Data'!$B$3:$BJ$20,MATCH($C$4,dfenums,0),MATCH($C19,'2022-23 Data'!$B$2:$BJ$2,0))),"",INDEX('2022-23 Data'!$B$3:$BJ$20,MATCH($C$4,dfenums,0),MATCH($C19,'2022-23 Data'!$B$2:$BJ$2,0))) ->  | H19: =IF(ISERROR(INDEX('2022-23 Data'!$B$3:$BJ$20,MATCH($H$6,dfenums,0),MATCH($C19,'2022-23 Data'!$B$2:$BJ$2,0))),"",INDEX('2022-23 Data'!$B$3:$BJ$20,MATCH($H$6,dfenums,0),MATCH($C19,'2022-23 Data'!$B$2:$BJ$2,0))) ->  | L19: =IF(ISERROR(INDEX('2022-23 Data'!$B$3:$BJ$20,MATCH($L$6,dfenums,0),MATCH($C19,'2022-23 Data'!$B$2:$BJ$2,0))),"",INDEX('2022-23 Data'!$B$3:$BJ$20,MATCH($L$6,dfenums,0),MATCH($C19,'2022-23 Data'!$B$2:$BJ$2,0))) ->  | P19: =IF(ISERROR(INDEX('2022-23 Data'!$B$3:$BJ$20,MATCH($P$6,dfenums,0),MATCH($C19,'2022-23 Data'!$B$2:$BJ$2,0))),"",INDEX('2022-23 Data'!$B$3:$BJ$20,MATCH($P$6,dfenums,0),MATCH($C19,'2022-23 Data'!$B$2:$BJ$2,0))) ->  | T19: =IF(ISERROR(SUM('2022-23 Data'!L$3:L$20)/SUM('2022-23 Data'!$C$3:$D$20)),"",SUM('2022-23 Data'!L$3:L$20)/SUM('2022-23 Data'!$C$3:$D$20)) -> 22.54347224 | U19: 0.003213589836 | V19: 0.002118917989
B20: Indirect employee expenses | C20: E08 | D20: =IF(ISERROR(INDEX('2022-23 Data'!$B$3:$BJ$20,MATCH($C$4,dfenums,0),MATCH($C20,'2022-23 Data'!$B$2:$BJ$2,0))),"",INDEX('2022-23 Data'!$B$3:$BJ$20,MATCH($C$4,dfenums,0),MATCH($C20,'2022-23 Data'!$B$2:$BJ$2,0))) ->  | H20: =IF(ISERROR(INDEX('2022-23 Data'!$B$3:$BJ$20,MATCH($H$6,dfenums,0),MATCH($C20,'2022-23 Data'!$B$2:$BJ$2,0))),"",INDEX('2022-23 Data'!$B$3:$BJ$20,MATCH($H$6,dfenums,0),MATCH($C20,'2022-23 Data'!$B$2:$BJ$2,0))) ->  | L20: =IF(ISERROR(INDEX('2022-23 Data'!$B$3:$BJ$20,MATCH($L$6,dfenums,0),MATCH($C20,'2022-23 Data'!$B$2:$BJ$2,0))),"",INDEX('2022-23 Data'!$B$3:$BJ$20,MATCH($L$6,dfenums,0),MATCH($C20,'2022-23 Data'!$B$2:$BJ$2,0))) ->  | P20: =IF(ISERROR(INDEX('2022-23 Data'!$B$3:$BJ$20,MATCH($P$6,dfenums,0),MATCH($C20,'2022-23 Data'!$B$2:$BJ$2,0))),"",INDEX('2022-23 Data'!$B$3:$BJ$20,MATCH($P$6,dfenums,0),MATCH($C20,'2022-23 Data'!$B$2:$BJ$2,0))) ->  | T20: =IF(ISERROR(SUM('2022-23 Data'!M$3:M$20)/SUM('2022-23 Data'!$C$3:$D$20)),"",SUM('2022-23 Data'!M$3:M$20)/SUM('2022-23 Data'!$C$3:$D$20)) -> 33.07586995 | U20: 0.004714991477 | V20: 0.003108884695
B21: Development and training | C21: E09 | D21: =IF(ISERROR(INDEX('2022-23 Data'!$B$3:$BJ$20,MATCH($C$4,dfenums,0),MATCH($C21,'2022-23 Data'!$B$2:$BJ$2,0))),"",INDEX('2022-23 Data'!$B$3:$BJ$20,MATCH($C$4,dfenums,0),MATCH($C21,'2022-23 Data'!$B$2:$BJ$2,0))) ->  | H21: =IF(ISERROR(INDEX('2022-23 Data'!$B$3:$BJ$20,MATCH($H$6,dfenums,0),MATCH($C21,'2022-23 Data'!$B$2:$BJ$2,0))),"",INDEX('2022-23 Data'!$B$3:$BJ$20,MATCH($H$6,dfenums,0),MATCH($C21,'2022-23 Data'!$B$2:$BJ$2,0))) ->  | L21: =IF(ISERROR(INDEX('2022-23 Data'!$B$3:$BJ$20,MATCH($L$6,dfenums,0),MATCH($C21,'2022-23 Data'!$B$2:$BJ$2,0))),"",INDEX('2022-23 Data'!$B$3:$BJ$20,MATCH($L$6,dfenums,0),MATCH($C21,'2022-23 Data'!$B$2:$BJ$2,0))) ->  | P21: =IF(ISERROR(INDEX('2022-23 Data'!$B$3:$BJ$20,MATCH($P$6,dfenums,0),MATCH($C21,'2022-23 Data'!$B$2:$BJ$2,0))),"",INDEX('2022-23 Data'!$B$3:$BJ$20,MATCH($P$6,dfenums,0),MATCH($C21,'2022-23 Data'!$B$2:$BJ$2,0))) ->  | T21: =IF(ISERROR(SUM('2022-23 Data'!N$3:N$20)/SUM('2022-23 Data'!$C$3:$D$20)),"",SUM('2022-23 Data'!N$3:N$20)/SUM('2022-23 Data'!$C$3:$D$20)) -> 23.49640445 | U21: 0.003349431077 | V21: 0.002208486497
B22: Supply teacher insurance | C22: E10 | D22: =IF(ISERROR(INDEX('2022-23 Data'!$B$3:$BJ$20,MATCH($C$4,dfenums,0),MATCH($C22,'2022-23 Data'!$B$2:$BJ$2,0))),"",INDEX('2022-23 Data'!$B$3:$BJ$20,MATCH($C$4,dfenums,0),MATCH($C22,'2022-23 Data'!$B$2:$BJ$2,0))) ->  | H22: =IF(ISERROR(INDEX('2022-23 Data'!$B$3:$BJ$20,MATCH($H$6,dfenums,0),MATCH($C22,'2022-23 Data'!$B$2:$BJ$2,0))),"",INDEX('2022-23 Data'!$B$3:$BJ$20,MATCH($H$6,dfenums,0),MATCH($C22,'2022-23 Data'!$B$2:$BJ$2,0))) ->  | L22: =IF(ISERROR(INDEX('2022-23 Data'!$B$3:$BJ$20,MATCH($L$6,dfenums,0),MATCH($C22,'2022-23 Data'!$B$2:$BJ$2,0))),"",INDEX('2022-23 Data'!$B$3:$BJ$20,MATCH($L$6,dfenums,0),MATCH($C22,'2022-23 Data'!$B$2:$BJ$2,0))) ->  | P22: =IF(ISERROR(INDEX('2022-23 Data'!$B$3:$BJ$20,MATCH($P$6,dfenums,0),MATCH($C22,'2022-23 Data'!$B$2:$BJ$2,0))),"",INDEX('2022-23 Data'!$B$3:$BJ$20,MATCH($P$6,dfenums,0),MATCH($C22,'2022-23 Data'!$B$2:$BJ$2,0))) ->  | T22: =IF(ISERROR(SUM('2022-23 Data'!O$3:O$20)/SUM('2022-23 Data'!$C$3:$D$20)),"",SUM('2022-23 Data'!O$3:O$20)/SUM('2022-23 Data'!$C$3:$D$20)) -> 1.560429312 | U22: 0.0002224404352 | V22: 0.0001466686987
B23: Staff related insurance | C23: E11 | D23: =IF(ISERROR(INDEX('2022-23 Data'!$B$3:$BJ$20,MATCH($C$4,dfenums,0),MATCH($C23,'2022-23 Data'!$B$2:$BJ$2,0))),"",INDEX('2022-23 Data'!$B$3:$BJ$20,MATCH($C$4,dfenums,0),MATCH($C23,'2022-23 Data'!$B$2:$BJ$2,0))) ->  | H23: =IF(ISERROR(INDEX('2022-23 Data'!$B$3:$BJ$20,MATCH($H$6,dfenums,0),MATCH($C23,'2022-23 Data'!$B$2:$BJ$2,0))),"",INDEX('2022-23 Data'!$B$3:$BJ$20,MATCH($H$6,dfenums,0),MATCH($C23,'2022-23 Data'!$B$2:$BJ$2,0))) ->  | L23: =IF(ISERROR(INDEX('2022-23 Data'!$B$3:$BJ$20,MATCH($L$6,dfenums,0),MATCH($C23,'2022-23 Data'!$B$2:$BJ$2,0))),"",INDEX('2022-23 Data'!$B$3:$BJ$20,MATCH($L$6,dfenums,0),MATCH($C23,'2022-23 Data'!$B$2:$BJ$2,0))) ->  | P23: =IF(ISERROR(INDEX('2022-23 Data'!$B$3:$BJ$20,MATCH($P$6,dfenums,0),MATCH($C23,'2022-23 Data'!$B$2:$BJ$2,0))),"",INDEX('2022-23 Data'!$B$3:$BJ$20,MATCH($P$6,dfenums,0),MATCH($C23,'2022-23 Data'!$B$2:$BJ$2,0))) ->  | T23: =IF(ISERROR(SUM('2022-23 Data'!P$3:P$20)/SUM('2022-23 Data'!$C$3:$D$20)),"",SUM('2022-23 Data'!P$3:P$20)/SUM('2022-23 Data'!$C$3:$D$20)) -> 18.82939252 | U23: 0.002684144828 | V23: 0.001769822239
B24: Building maintenance and improvement | C24: E12 | D24: =IF(ISERROR(INDEX('2022-23 Data'!$B$3:$BJ$20,MATCH($C$4,dfenums,0),MATCH($C24,'2022-23 Data'!$B$2:$BJ$2,0))),"",INDEX('2022-23 Data'!$B$3:$BJ$20,MATCH($C$4,dfenums,0),MATCH($C24,'2022-23 Data'!$B$2:$BJ$2,0))) ->  | H24: =IF(ISERROR(INDEX('2022-23 Data'!$B$3:$BJ$20,MATCH($H$6,dfenums,0),MATCH($C24,'2022-23 Data'!$B$2:$BJ$2,0))),"",INDEX('2022-23 Data'!$B$3:$BJ$20,MATCH($H$6,dfenums,0),MATCH($C24,'2022-23 Data'!$B$2:$BJ$2,0))) ->  | L24: =IF(ISERROR(INDEX('2022-23 Data'!$B$3:$BJ$20,MATCH($L$6,dfenums,0),MATCH($C24,'2022-23 Data'!$B$2:$BJ$2,0))),"",INDEX('2022-23 Data'!$B$3:$BJ$20,MATCH($L$6,dfenums,0),MATCH($C24,'2022-23 Data'!$B$2:$BJ$2,0))) ->  | P24: =IF(ISERROR(INDEX('2022-23 Data'!$B$3:$BJ$20,MATCH($P$6,dfenums,0),MATCH($C24,'2022-23 Data'!$B$2:$BJ$2,0))),"",INDEX('2022-23 Data'!$B$3:$BJ$20,MATCH($P$6,dfenums,0),MATCH($C24,'2022-23 Data'!$B$2:$BJ$2,0))) ->  | T24: =IF(ISERROR(SUM('2022-23 Data'!Q$3:Q$20)/SUM('2022-23 Data'!$C$3:$D$20)),"",SUM('2022-23 Data'!Q$3:Q$20)/SUM('2022-23 Data'!$C$3:$D$20)) -> 145.0735474 | U24: 0.02068034917 | V24: 0.01363582974
B25: Grounds maintenance and improvement | C25: E13 | D25: =IF(ISERROR(INDEX('2022-23 Data'!$B$3:$BJ$20,MATCH($C$4,dfenums,0),MATCH($C25,'2022-23 Data'!$B$2:$BJ$2,0))),"",INDEX('2022-23 Data'!$B$3:$BJ$20,MATCH($C$4,dfenums,0),MATCH($C25,'2022-23 Data'!$B$2:$BJ$2,0))) ->  | H25: =IF(ISERROR(INDEX('2022-23 Data'!$B$3:$BJ$20,MATCH($H$6,dfenums,0),MATCH($C25,'2022-23 Data'!$B$2:$BJ$2,0))),"",INDEX('2022-23 Data'!$B$3:$BJ$20,MATCH($H$6,dfenums,0),MATCH($C25,'2022-23 Data'!$B$2:$BJ$2,0))) ->  | L25: =IF(ISERROR(INDEX('2022-23 Data'!$B$3:$BJ$20,MATCH($L$6,dfenums,0),MATCH($C25,'2022-23 Data'!$B$2:$BJ$2,0))),"",INDEX('2022-23 Data'!$B$3:$BJ$20,MATCH($L$6,dfenums,0),MATCH($C25,'2022-23 Data'!$B$2:$BJ$2,0))) ->  | P25: =IF(ISERROR(INDEX('2022-23 Data'!$B$3:$BJ$20,MATCH($P$6,dfenums,0),MATCH($C25,'2022-23 Data'!$B$2:$BJ$2,0))),"",INDEX('2022-23 Data'!$B$3:$BJ$20,MATCH($P$6,dfenums,0),MATCH($C25,'2022-23 Data'!$B$2:$BJ$2,0))) ->  | T25: =IF(ISERROR(SUM('2022-23 Data'!R$3:R$20)/SUM('2022-23 Data'!$C$3:$D$20)),"",SUM('2022-23 Data'!R$3:R$20)/SUM('2022-23 Data'!$C$3:$D$20)) -> 29.5334079 | U25: 0.004210010704 | V25: 0.002775919725
B26: Cleaning and caretaking | C26: E14 | D26: =IF(ISERROR(INDEX('2022-23 Data'!$B$3:$BJ$20,MATCH($C$4,dfenums,0),MATCH($C26,'2022-23 Data'!$B$2:$BJ$2,0))),"",INDEX('2022-23 Data'!$B$3:$BJ$20,MATCH($C$4,dfenums,0),MATCH($C26,'2022-23 Data'!$B$2:$BJ$2,0))) ->  | H26: =IF(ISERROR(INDEX('2022-23 Data'!$B$3:$BJ$20,MATCH($H$6,dfenums,0),MATCH($C26,'2022-23 Data'!$B$2:$BJ$2,0))),"",INDEX('2022-23 Data'!$B$3:$BJ$20,MATCH($H$6,dfenums,0),MATCH($C26,'2022-23 Data'!$B$2:$BJ$2,0))) ->  | L26: =IF(ISERROR(INDEX('2022-23 Data'!$B$3:$BJ$20,MATCH($L$6,dfenums,0),MATCH($C26,'2022-23 Data'!$B$2:$BJ$2,0))),"",INDEX('2022-23 Data'!$B$3:$BJ$20,MATCH($L$6,dfenums,0),MATCH($C26,'2022-23 Data'!$B$2:$BJ$2,0))) ->  | P26: =IF(ISERROR(INDEX('2022-23 Data'!$B$3:$BJ$20,MATCH($P$6,dfenums,0),MATCH($C26,'2022-23 Data'!$B$2:$BJ$2,0))),"",INDEX('2022-23 Data'!$B$3:$BJ$20,MATCH($P$6,dfenums,0),MATCH($C26,'2022-23 Data'!$B$2:$BJ$2,0))) ->  | T26: =IF(ISERROR(SUM('2022-23 Data'!S$3:S$20)/SUM('2022-23 Data'!$C$3:$D$20)),"",SUM('2022-23 Data'!S$3:S$20)/SUM('2022-23 Data'!$C$3:$D$20)) -> 95.06626993 | U26: 0.01355177213 | V26: 0.008935519217
B27: Water and sewerage | C27: E15 | D27: =IF(ISERROR(INDEX('2022-23 Data'!$B$3:$BJ$20,MATCH($C$4,dfenums,0),MATCH($C27,'2022-23 Data'!$B$2:$BJ$2,0))),"",INDEX('2022-23 Data'!$B$3:$BJ$20,MATCH($C$4,dfenums,0),MATCH($C27,'2022-23 Data'!$B$2:$BJ$2,0))) ->  | H27: =IF(ISERROR(INDEX('2022-23 Data'!$B$3:$BJ$20,MATCH($H$6,dfenums,0),MATCH($C27,'2022-23 Data'!$B$2:$BJ$2,0))),"",INDEX('2022-23 Data'!$B$3:$BJ$20,MATCH($H$6,dfenums,0),MATCH($C27,'2022-23 Data'!$B$2:$BJ$2,0))) ->  | L27: =IF(ISERROR(INDEX('2022-23 Data'!$B$3:$BJ$20,MATCH($L$6,dfenums,0),MATCH($C27,'2022-23 Data'!$B$2:$BJ$2,0))),"",INDEX('2022-23 Data'!$B$3:$BJ$20,MATCH($L$6,dfenums,0),MATCH($C27,'2022-23 Data'!$B$2:$BJ$2,0))) ->  | P27: =IF(ISERROR(INDEX('2022-23 Data'!$B$3:$BJ$20,MATCH($P$6,dfenums,0),MATCH($C27,'2022-23 Data'!$B$2:$BJ$2,0))),"",INDEX('2022-23 Data'!$B$3:$BJ$20,MATCH($P$6,dfenums,0),MATCH($C27,'2022-23 Data'!$B$2:$BJ$2,0))) ->  | T27: =IF(ISERROR(SUM('2022-23 Data'!T$3:T$20)/SUM('2022-23 Data'!$C$3:$D$20)),"",SUM('2022-23 Data'!T$3:T$20)/SUM('2022-23 Data'!$C$3:$D$20)) -> 17.77178331 | U27: 0.002533381796 | V27: 0.001670414873
B28: Energy | C28: E16 | D28: =IF(ISERROR(INDEX('2022-23 Data'!$B$3:$BJ$20,MATCH($C$4,dfenums,0),MATCH($C28,'2022-23 Data'!$B$2:$BJ$2,0))),"",INDEX('2022-23 Data'!$B$3:$BJ$20,MATCH($C$4,dfenums,0),MATCH($C28,'2022-23 Data'!$B$2:$BJ$2,0))) ->  | H28: =IF(ISERROR(INDEX('2022-23 Data'!$B$3:$BJ$20,MATCH($H$6,dfenums,0),MATCH($C28,'2022-23 Data'!$B$2:$BJ$2,0))),"",INDEX('2022-23 Data'!$B$3:$BJ$20,MATCH($H$6,dfenums,0),MATCH($C28,'2022-23 Data'!$B$2:$BJ$2,0))) ->  | L28: =IF(ISERROR(INDEX('2022-23 Data'!$B$3:$BJ$20,MATCH($L$6,dfenums,0),MATCH($C28,'2022-23 Data'!$B$2:$BJ$2,0))),"",INDEX('2022-23 Data'!$B$3:$BJ$20,MATCH($L$6,dfenums,0),MATCH($C28,'2022-23 Data'!$B$2:$BJ$2,0))) ->  | P28: =IF(ISERROR(INDEX('2022-23 Data'!$B$3:$BJ$20,MATCH($P$6,dfenums,0),MATCH($C28,'2022-23 Data'!$B$2:$BJ$2,0))),"",INDEX('2022-23 Data'!$B$3:$BJ$20,MATCH($P$6,dfenums,0),MATCH($C28,'2022-23 Data'!$B$2:$BJ$2,0))) ->  | T28: =IF(ISERROR(SUM('2022-23 Data'!U$3:U$20)/SUM('2022-23 Data'!$C$3:$D$20)),"",SUM('2022-23 Data'!U$3:U$20)/SUM('2022-23 Data'!$C$3:$D$20)) -> 143.0609557 | U28: 0.02039345263 | V28: 0.01344666116
B29: Rates | C29: E17 | D29: =IF(ISERROR(INDEX('2022-23 Data'!$B$3:$BJ$20,MATCH($C$4,dfenums,0),MATCH($C29,'2022-23 Data'!$B$2:$BJ$2,0))),"",INDEX('2022-23 Data'!$B$3:$BJ$20,MATCH($C$4,dfenums,0),MATCH($C29,'2022-23 Data'!$B$2:$BJ$2,0))) ->  | H29: =IF(ISERROR(INDEX('2022-23 Data'!$B$3:$BJ$20,MATCH($H$6,dfenums,0),MATCH($C29,'2022-23 Data'!$B$2:$BJ$2,0))),"",INDEX('2022-23 Data'!$B$3:$BJ$20,MATCH($H$6,dfenums,0),MATCH($C29,'2022-23 Data'!$B$2:$BJ$2,0))) ->  | L29: =IF(ISERROR(INDEX('2022-23 Data'!$B$3:$BJ$20,MATCH($L$6,dfenums,0),MATCH($C29,'2022-23 Data'!$B$2:$BJ$2,0))),"",INDEX('2022-23 Data'!$B$3:$BJ$20,MATCH($L$6,dfenums,0),MATCH($C29,'2022-23 Data'!$B$2:$BJ$2,0))) ->  | P29: =IF(ISERROR(INDEX('2022-23 Data'!$B$3:$BJ$20,MATCH($P$6,dfenums,0),MATCH($C29,'2022-23 Data'!$B$2:$BJ$2,0))),"",INDEX('2022-23 Data'!$B$3:$BJ$20,MATCH($P$6,dfenums,0),MATCH($C29,'2022-23 Data'!$B$2:$BJ$2,0))) ->  | T29: =IF(ISERROR(SUM('2022-23 Data'!V$3:V$20)/SUM('2022-23 Data'!$C$3:$D$20)),"",SUM('2022-23 Data'!V$3:V$20)/SUM('2022-23 Data'!$C$3:$D$20)) -> 58.85929236 | U29: 0.008390438778 | V29: 0.005532333797
B30: Other occupation costs | C30: E18 | D30: =IF(ISERROR(INDEX('2022-23 Data'!$B$3:$BJ$20,MATCH($C$4,dfenums,0),MATCH($C30,'2022-23 Data'!$B$2:$BJ$2,0))),"",INDEX('2022-23 Data'!$B$3:$BJ$20,MATCH($C$4,dfenums,0),MATCH($C30,'2022-23 Data'!$B$2:$BJ$2,0))) ->  | H30: =IF(ISERROR(INDEX('2022-23 Data'!$B$3:$BJ$20,MATCH($H$6,dfenums,0),MATCH($C30,'2022-23 Data'!$B$2:$BJ$2,0))),"",INDEX('2022-23 Data'!$B$3:$BJ$20,MATCH($H$6,dfenums,0),MATCH($C30,'2022-23 Data'!$B$2:$BJ$2,0))) ->  | L30: =IF(ISERROR(INDEX('2022-23 Data'!$B$3:$BJ$20,MATCH($L$6,dfenums,0),MATCH($C30,'2022-23 Data'!$B$2:$BJ$2,0))),"",INDEX('2022-23 Data'!$B$3:$BJ$20,MATCH($L$6,dfenums,0),MATCH($C30,'2022-23 Data'!$B$2:$BJ$2,0))) ->  | P30: =IF(ISERROR(INDEX('2022-23 Data'!$B$3:$BJ$20,MATCH($P$6,dfenums,0),MATCH($C30,'2022-23 Data'!$B$2:$BJ$2,0))),"",INDEX('2022-23 Data'!$B$3:$BJ$20,MATCH($P$6,dfenums,0),MATCH($C30,'2022-23 Data'!$B$2:$BJ$2,0))) ->  | T30: =IF(ISERROR(SUM('2022-23 Data'!W$3:W$20)/SUM('2022-23 Data'!$C$3:$D$20)),"",SUM('2022-23 Data'!W$3:W$20)/SUM('2022-23 Data'!$C$3:$D$20)) -> 26.17868942 | U30: 0.003731792925 | V30: 0.002460601247
B31: Learning resources (not ICT equipment) | C31: E19 | D31: =IF(ISERROR(INDEX('2022-23 Data'!$B$3:$BJ$20,MATCH($C$4,dfenums,0),MATCH($C31,'2022-23 Data'!$B$2:$BJ$2,0))),"",INDEX('2022-23 Data'!$B$3:$BJ$20,MATCH($C$4,dfenums,0),MATCH($C31,'2022-23 Data'!$B$2:$BJ$2,0))) ->  | H31: =IF(ISERROR(INDEX('2022-23 Data'!$B$3:$BJ$20,MATCH($H$6,dfenums,0),MATCH($C31,'2022-23 Data'!$B$2:$BJ$2,0))),"",INDEX('2022-23 Data'!$B$3:$BJ$20,MATCH($H$6,dfenums,0),MATCH($C31,'2022-23 Data'!$B$2:$BJ$2,0))) ->  | L31: =IF(ISERROR(INDEX('2022-23 Data'!$B$3:$BJ$20,MATCH($L$6,dfenums,0),MATCH($C31,'2022-23 Data'!$B$2:$BJ$2,0))),"",INDEX('2022-23 Data'!$B$3:$BJ$20,MATCH($L$6,dfenums,0),MATCH($C31,'2022-23 Data'!$B$2:$BJ$2,0))) ->  | P31: =IF(ISERROR(INDEX('2022-23 Data'!$B$3:$BJ$20,MATCH($P$6,dfenums,0),MATCH($C31,'2022-23 Data'!$B$2:$BJ$2,0))),"",INDEX('2022-23 Data'!$B$3:$BJ$20,MATCH($P$6,dfenums,0),MATCH($C31,'2022-23 Data'!$B$2:$BJ$2,0))) ->  | T31: =IF(ISERROR(SUM('2022-23 Data'!X$3:X$20)/SUM('2022-23 Data'!$C$3:$D$20)),"",SUM('2022-23 Data'!X$3:X$20)/SUM('2022-23 Data'!$C$3:$D$20)) -> 335.3825537 | U31: 0.04780904886 | V31: 0.0315234547
B32: ICT learning resources | C32: E20 | D32: =IF(ISERROR(INDEX('2022-23 Data'!$B$3:$BJ$20,MATCH($C$4,dfenums,0),MATCH($C32,'2022-23 Data'!$B$2:$BJ$2,0))),"",INDEX('2022-23 Data'!$B$3:$BJ$20,MATCH($C$4,dfenums,0),MATCH($C32,'2022-23 Data'!$B$2:$BJ$2,0))) ->  | H32: =IF(ISERROR(INDEX('2022-23 Data'!$B$3:$BJ$20,MATCH($H$6,dfenums,0),MATCH($C32,'2022-23 Data'!$B$2:$BJ$2,0))),"",INDEX('2022-23 Data'!$B$3:$BJ$20,MATCH($H$6,dfenums,0),MATCH($C32,'2022-23 Data'!$B$2:$BJ$2,0))) ->  | L32: =IF(ISERROR(INDEX('2022-23 Data'!$B$3:$BJ$20,MATCH($L$6,dfenums,0),MATCH($C32,'2022-23 Data'!$B$2:$BJ$2,0))),"",INDEX('2022-23 Data'!$B$3:$BJ$20,MATCH($L$6,dfenums,0),MATCH($C32,'2022-23 Data'!$B$2:$BJ$2,0))) ->  | P32: =IF(ISERROR(INDEX('2022-23 Data'!$B$3:$BJ$20,MATCH($P$6,dfenums,0),MATCH($C32,'2022-23 Data'!$B$2:$BJ$2,0))),"",INDEX('2022-23 Data'!$B$3:$BJ$20,MATCH($P$6,dfenums,0),MATCH($C32,'2022-23 Data'!$B$2:$BJ$2,0))) ->  | T32: =IF(ISERROR(SUM('2022-23 Data'!Y$3:Y$20)/SUM('2022-23 Data'!$C$3:$D$20)),"",SUM('2022-23 Data'!Y$3:Y$20)/SUM('2022-23 Data'!$C$3:$D$20)) -> 113.7472983 | U32: 0.01621476753 | V32: 0.01069139634
B33: Exam fees | C33: E21 | D33: =IF(ISERROR(INDEX('2022-23 Data'!$B$3:$BJ$20,MATCH($C$4,dfenums,0),MATCH($C33,'2022-23 Data'!$B$2:$BJ$2,0))),"",INDEX('2022-23 Data'!$B$3:$BJ$20,MATCH($C$4,dfenums,0),MATCH($C33,'2022-23 Data'!$B$2:$BJ$2,0))) ->  | H33: =IF(ISERROR(INDEX('2022-23 Data'!$B$3:$BJ$20,MATCH($H$6,dfenums,0),MATCH($C33,'2022-23 Data'!$B$2:$BJ$2,0))),"",INDEX('2022-23 Data'!$B$3:$BJ$20,MATCH($H$6,dfenums,0),MATCH($C33,'2022-23 Data'!$B$2:$BJ$2,0))) ->  | L33: =IF(ISERROR(INDEX('2022-23 Data'!$B$3:$BJ$20,MATCH($L$6,dfenums,0),MATCH($C33,'2022-23 Data'!$B$2:$BJ$2,0))),"",INDEX('2022-23 Data'!$B$3:$BJ$20,MATCH($L$6,dfenums,0),MATCH($C33,'2022-23 Data'!$B$2:$BJ$2,0))) ->  | P33: =IF(ISERROR(INDEX('2022-23 Data'!$B$3:$BJ$20,MATCH($P$6,dfenums,0),MATCH($C33,'2022-23 Data'!$B$2:$BJ$2,0))),"",INDEX('2022-23 Data'!$B$3:$BJ$20,MATCH($P$6,dfenums,0),MATCH($C33,'2022-23 Data'!$B$2:$BJ$2,0))) ->  | T33: =IF(ISERROR(SUM('2022-23 Data'!Z$3:Z$20)/SUM('2022-23 Data'!$C$3:$D$20)),"",SUM('2022-23 Data'!Z$3:Z$20)/SUM('2022-23 Data'!$C$3:$D$20)) -> 123.4284916 | U33: 0.01759482931 | V33: 0.01160135619
B34: Administrative supplies | C34: E22 | D34: =IF(ISERROR(INDEX('2022-23 Data'!$B$3:$BJ$20,MATCH($C$4,dfenums,0),MATCH($C34,'2022-23 Data'!$B$2:$BJ$2,0))),"",INDEX('2022-23 Data'!$B$3:$BJ$20,MATCH($C$4,dfenums,0),MATCH($C34,'2022-23 Data'!$B$2:$BJ$2,0))) ->  | H34: =IF(ISERROR(INDEX('2022-23 Data'!$B$3:$BJ$20,MATCH($H$6,dfenums,0),MATCH($C34,'2022-23 Data'!$B$2:$BJ$2,0))),"",INDEX('2022-23 Data'!$B$3:$BJ$20,MATCH($H$6,dfenums,0),MATCH($C34,'2022-23 Data'!$B$2:$BJ$2,0))) ->  | L34: =IF(ISERROR(INDEX('2022-23 Data'!$B$3:$BJ$20,MATCH($L$6,dfenums,0),MATCH($C34,'2022-23 Data'!$B$2:$BJ$2,0))),"",INDEX('2022-23 Data'!$B$3:$BJ$20,MATCH($L$6,dfenums,0),MATCH($C34,'2022-23 Data'!$B$2:$BJ$2,0))) ->  | P34: =IF(ISERROR(INDEX('2022-23 Data'!$B$3:$BJ$20,MATCH($P$6,dfenums,0),MATCH($C34,'2022-23 Data'!$B$2:$BJ$2,0))),"",INDEX('2022-23 Data'!$B$3:$BJ$20,MATCH($P$6,dfenums,0),MATCH($C34,'2022-23 Data'!$B$2:$BJ$2,0))) ->  | T34: =IF(ISERROR(SUM('2022-23 Data'!AA$3:AA$20)/SUM('2022-23 Data'!$C$3:$D$20)),"",SUM('2022-23 Data'!AA$3:AA$20)/SUM('2022-23 Data'!$C$3:$D$20)) -> 61.10309074 | U34: 0.008710294015 | V34: 0.005743234083
B35: Other insurance premiums | C35: E23 | D35: =IF(ISERROR(INDEX('2022-23 Data'!$B$3:$BJ$20,MATCH($C$4,dfenums,0),MATCH($C35,'2022-23 Data'!$B$2:$BJ$2,0))),"",INDEX('2022-23 Data'!$B$3:$BJ$20,MATCH($C$4,dfenums,0),MATCH($C35,'2022-23 Data'!$B$2:$BJ$2,0))) ->  | H35: =IF(ISERROR(INDEX('2022-23 Data'!$B$3:$BJ$20,MATCH($H$6,dfenums,0),MATCH($C35,'2022-23 Data'!$B$2:$BJ$2,0))),"",INDEX('2022-23 Data'!$B$3:$BJ$20,MATCH($H$6,dfenums,0),MATCH($C35,'2022-23 Data'!$B$2:$BJ$2,0))) ->  | L35: =IF(ISERROR(INDEX('2022-23 Data'!$B$3:$BJ$20,MATCH($L$6,dfenums,0),MATCH($C35,'2022-23 Data'!$B$2:$BJ$2,0))),"",INDEX('2022-23 Data'!$B$3:$BJ$20,MATCH($L$6,dfenums,0),MATCH($C35,'2022-23 Data'!$B$2:$BJ$2,0))) ->  | P35: =IF(ISERROR(INDEX('2022-23 Data'!$B$3:$BJ$20,MATCH($P$6,dfenums,0),MATCH($C35,'2022-23 Data'!$B$2:$BJ$2,0))),"",INDEX('2022-23 Data'!$B$3:$BJ$20,MATCH($P$6,dfenums,0),MATCH($C35,'2022-23 Data'!$B$2:$BJ$2,0))) ->  | T35: =IF(ISERROR(SUM('2022-23 Data'!AB$3:AB$20)/SUM('2022-23 Data'!$C$3:$D$20)),"",SUM('2022-23 Data'!AB$3:AB$20)/SUM('2022-23 Data'!$C$3:$D$20)) -> 36.69831435 | U35: 0.005231373797 | V35: 0.003449367408
B36: Special facilities | C36: E24 | D36: =IF(ISERROR(INDEX('2022-23 Data'!$B$3:$BJ$20,MATCH($C$4,dfenums,0),MATCH($C36,'2022-23 Data'!$B$2:$BJ$2,0))),"",INDEX('2022-23 Data'!$B$3:$BJ$20,MATCH($C$4,dfenums,0),MATCH($C36,'2022-23 Data'!$B$2:$BJ$2,0))) ->  | H36: =IF(ISERROR(INDEX('2022-23 Data'!$B$3:$BJ$20,MATCH($H$6,dfenums,0),MATCH($C36,'2022-23 Data'!$B$2:$BJ$2,0))),"",INDEX('2022-23 Data'!$B$3:$BJ$20,MATCH($H$6,dfenums,0),MATCH($C36,'2022-23 Data'!$B$2:$BJ$2,0))) ->  | L36: =IF(ISERROR(INDEX('2022-23 Data'!$B$3:$BJ$20,MATCH($L$6,dfenums,0),MATCH($C36,'2022-23 Data'!$B$2:$BJ$2,0))),"",INDEX('2022-23 Data'!$B$3:$BJ$20,MATCH($L$6,dfenums,0),MATCH($C36,'2022-23 Data'!$B$2:$BJ$2,0))) ->  | P36: =IF(ISERROR(INDEX('2022-23 Data'!$B$3:$BJ$20,MATCH($P$6,dfenums,0),MATCH($C36,'2022-23 Data'!$B$2:$BJ$2,0))),"",INDEX('2022-23 Data'!$B$3:$BJ$20,MATCH($P$6,dfenums,0),MATCH($C36,'2022-23 Data'!$B$2:$BJ$2,0))) ->  | T36: =IF(ISERROR(SUM('2022-23 Data'!AC$3:AC$20)/SUM('2022-23 Data'!$C$3:$D$20)),"",SUM('2022-23 Data'!AC$3:AC$20)/SUM('2022-23 Data'!$C$3:$D$20)) -> 241.348129 | U36: 0.03440436708 | V36: 0.02268492123
B37: Catering supplies | C37: E25 | D37: =IF(ISERROR(INDEX('2022-23 Data'!$B$3:$BJ$20,MATCH($C$4,dfenums,0),MATCH($C37,'2022-23 Data'!$B$2:$BJ$2,0))),"",INDEX('2022-23 Data'!$B$3:$BJ$20,MATCH($C$4,dfenums,0),MATCH($C37,'2022-23 Data'!$B$2:$BJ$2,0))) ->  | H37: =IF(ISERROR(INDEX('2022-23 Data'!$B$3:$BJ$20,MATCH($H$6,dfenums,0),MATCH($C37,'2022-23 Data'!$B$2:$BJ$2,0))),"",INDEX('2022-23 Data'!$B$3:$BJ$20,MATCH($H$6,dfenums,0),MATCH($C37,'2022-23 Data'!$B$2:$BJ$2,0))) ->  | L37: =IF(ISERROR(INDEX('2022-23 Data'!$B$3:$BJ$20,MATCH($L$6,dfenums,0),MATCH($C37,'2022-23 Data'!$B$2:$BJ$2,0))),"",INDEX('2022-23 Data'!$B$3:$BJ$20,MATCH($L$6,dfenums,0),MATCH($C37,'2022-23 Data'!$B$2:$BJ$2,0))) ->  | P37: =IF(ISERROR(INDEX('2022-23 Data'!$B$3:$BJ$20,MATCH($P$6,dfenums,0),MATCH($C37,'2022-23 Data'!$B$2:$BJ$2,0))),"",INDEX('2022-23 Data'!$B$3:$BJ$20,MATCH($P$6,dfenums,0),MATCH($C37,'2022-23 Data'!$B$2:$BJ$2,0))) ->  | T37: =IF(ISERROR(SUM('2022-23 Data'!AD$3:AD$20)/SUM('2022-23 Data'!$C$3:$D$20)),"",SUM('2022-23 Data'!AD$3:AD$20)/SUM('2022-23 Data'!$C$3:$D$20)) -> 93.78623862 | U37: 0.01336930265 | V37: 0.008815205837
B38: Agency supply teaching staff | C38: E26 | D38: =IF(ISERROR(INDEX('2022-23 Data'!$B$3:$BJ$20,MATCH($C$4,dfenums,0),MATCH($C38,'2022-23 Data'!$B$2:$BJ$2,0))),"",INDEX('2022-23 Data'!$B$3:$BJ$20,MATCH($C$4,dfenums,0),MATCH($C38,'2022-23 Data'!$B$2:$BJ$2,0))) ->  | H38: =IF(ISERROR(INDEX('2022-23 Data'!$B$3:$BJ$20,MATCH($H$6,dfenums,0),MATCH($C38,'2022-23 Data'!$B$2:$BJ$2,0))),"",INDEX('2022-23 Data'!$B$3:$BJ$20,MATCH($H$6,dfenums,0),MATCH($C38,'2022-23 Data'!$B$2:$BJ$2,0))) ->  | L38: =IF(ISERROR(INDEX('2022-23 Data'!$B$3:$BJ$20,MATCH($L$6,dfenums,0),MATCH($C38,'2022-23 Data'!$B$2:$BJ$2,0))),"",INDEX('2022-23 Data'!$B$3:$BJ$20,MATCH($L$6,dfenums,0),MATCH($C38,'2022-23 Data'!$B$2:$BJ$2,0))) ->  | P38: =IF(ISERROR(INDEX('2022-23 Data'!$B$3:$BJ$20,MATCH($P$6,dfenums,0),MATCH($C38,'2022-23 Data'!$B$2:$BJ$2,0))),"",INDEX('2022-23 Data'!$B$3:$BJ$20,MATCH($P$6,dfenums,0),MATCH($C38,'2022-23 Data'!$B$2:$BJ$2,0))) ->  | T38: =IF(ISERROR(SUM('2022-23 Data'!AE$3:AE$20)/SUM('2022-23 Data'!$C$3:$D$20)),"",SUM('2022-23 Data'!AE$3:AE$20)/SUM('2022-23 Data'!$C$3:$D$20)) -> 74.99125975 | U38: 0.01069006351 | V38: 0.007048618223
B39: Bought in professional services - curriculum | C39: E27 | D39: =IF(ISERROR(INDEX('2022-23 Data'!$B$3:$BJ$20,MATCH($C$4,dfenums,0),MATCH($C39,'2022-23 Data'!$B$2:$BJ$2,0))),"",INDEX('2022-23 Data'!$B$3:$BJ$20,MATCH($C$4,dfenums,0),MATCH($C39,'2022-23 Data'!$B$2:$BJ$2,0))) ->  | H39: =IF(ISERROR(INDEX('2022-23 Data'!$B$3:$BJ$20,MATCH($H$6,dfenums,0),MATCH($C39,'2022-23 Data'!$B$2:$BJ$2,0))),"",INDEX('2022-23 Data'!$B$3:$BJ$20,MATCH($H$6,dfenums,0),MATCH($C39,'2022-23 Data'!$B$2:$BJ$2,0))) ->  | L39: =IF(ISERROR(INDEX('2022-23 Data'!$B$3:$BJ$20,MATCH($L$6,dfenums,0),MATCH($C39,'2022-23 Data'!$B$2:$BJ$2,0))),"",INDEX('2022-23 Data'!$B$3:$BJ$20,MATCH($L$6,dfenums,0),MATCH($C39,'2022-23 Data'!$B$2:$BJ$2,0))) ->  | P39: =IF(ISERROR(INDEX('2022-23 Data'!$B$3:$BJ$20,MATCH($P$6,dfenums,0),MATCH($C39,'2022-23 Data'!$B$2:$BJ$2,0))),"",INDEX('2022-23 Data'!$B$3:$BJ$20,MATCH($P$6,dfenums,0),MATCH($C39,'2022-23 Data'!$B$2:$BJ$2,0))) ->  | T39: =IF(ISERROR(SUM('2022-23 Data'!AF$3:AF$20)/SUM('2022-23 Data'!$C$3:$D$20)),"",SUM('2022-23 Data'!AF$3:AF$20)/SUM('2022-23 Data'!$C$3:$D$20)) -> 90.77769037 | U39: 0.01294043171 | V39: 0.008532424775
B40: Bought in professional services other | C40: E28 | D40: =IF(ISERROR(INDEX('2022-23 Data'!$B$3:$BJ$20,MATCH($C$4,dfenums,0),MATCH($C40,'2022-23 Data'!$B$2:$BJ$2,0))),"",INDEX('2022-23 Data'!$B$3:$BJ$20,MATCH($C$4,dfenums,0),MATCH($C40,'2022-23 Data'!$B$2:$BJ$2,0))) ->  | E40: =IF($C$4>0,D40/($E$4+$F$4),"") ->  | F40: =IF($C$4>0,D40/$D$46,"") ->  | H40: =IF(ISERROR(INDEX('2022-23 Data'!$B$3:$BJ$20,MATCH($H$6,dfenums,0),MATCH($C40,'2022-23 Data'!$B$2:$BJ$2,0))),"",INDEX('2022-23 Data'!$B$3:$BJ$20,MATCH($H$6,dfenums,0),MATCH($C40,'2022-23 Data'!$B$2:$BJ$2,0))) ->  | I40: =IF($H$6>0,H40/($I$6+$J$6),"") ->  | J40: =IF($H$6>0,H40/$H$46,"") ->  | L40: =IF(ISERROR(INDEX('2022-23 Data'!$B$3:$BJ$20,MATCH($L$6,dfenums,0),MATCH($C40,'2022-23 Data'!$B$2:$BJ$2,0))),"",INDEX('2022-23 Data'!$B$3:$BJ$20,MATCH($L$6,dfenums,0),MATCH($C40,'2022-23 Data'!$B$2:$BJ$2,0))) ->  | M40: =IF($L$6>0,L40/($M$6+$N$6),"") ->  | N40: =IF($L$6>0,L40/$L$46,"") ->  | P40: =IF(ISERROR(INDEX('2022-23 Data'!$B$3:$BJ$20,MATCH($P$6,dfenums,0),MATCH($C40,'2022-23 Data'!$B$2:$BJ$2,0))),"",INDEX('2022-23 Data'!$B$3:$BJ$20,MATCH($P$6,dfenums,0),MATCH($C40,'2022-23 Data'!$B$2:$BJ$2,0))) ->  | Q40: =IF($P$6>0,P40/($Q$6+$R$6),"") ->  | R40: =IF($P$6>0,P40/$P$46,"") ->  | T40: =IF(ISERROR(SUM('2022-23 Data'!AG$3:AG$20)/SUM('2022-23 Data'!$C$3:$D$20)),"",SUM('2022-23 Data'!AG$3:AG$20)/SUM('2022-23 Data'!$C$3:$D$20)) -> 114.137883 | U40: =IF(ISERROR(T40/$T$46),"",T40/$T$46) -> 0.01627044569 | V40: =IF(ISERROR(T40/-$T$72),"",T40/-$T$72) -> 0.01072810838
B41: Bought in professional services other | C41: E28b | D41: =IF(ISERROR(INDEX('2022-23 Data'!$B$3:$BJ$20,MATCH($C$4,dfenums,0),MATCH($C41,'2022-23 Data'!$B$2:$BJ$2,0))),"",INDEX('2022-23 Data'!$B$3:$BJ$20,MATCH($C$4,dfenums,0),MATCH($C41,'2022-23 Data'!$B$2:$BJ$2,0))) ->  | H41: =IF(ISERROR(INDEX('2022-23 Data'!$B$3:$BJ$20,MATCH($H$6,dfenums,0),MATCH($C41,'2022-23 Data'!$B$2:$BJ$2,0))),"",INDEX('2022-23 Data'!$B$3:$BJ$20,MATCH($H$6,dfenums,0),MATCH($C41,'2022-23 Data'!$B$2:$BJ$2,0))) ->  | L41: =IF(ISERROR(INDEX('2022-23 Data'!$B$3:$BJ$20,MATCH($L$6,dfenums,0),MATCH($C41,'2022-23 Data'!$B$2:$BJ$2,0))),"",INDEX('2022-23 Data'!$B$3:$BJ$20,MATCH($L$6,dfenums,0),MATCH($C41,'2022-23 Data'!$B$2:$BJ$2,0))) ->  | P41: =IF(ISERROR(INDEX('2022-23 Data'!$B$3:$BJ$20,MATCH($P$6,dfenums,0),MATCH($C41,'2022-23 Data'!$B$2:$BJ$2,0))),"",INDEX('2022-23 Data'!$B$3:$BJ$20,MATCH($P$6,dfenums,0),MATCH($C41,'2022-23 Data'!$B$2:$BJ$2,0))) ->  | T41: =IF(ISERROR(SUM('2022-23 Data'!AH$3:AH$20)/SUM('2022-23 Data'!$C$3:$D$20)),"",SUM('2022-23 Data'!AH$3:AH$20)/SUM('2022-23 Data'!$C$3:$D$20)) -> 0 | U41: 0 | V41: 0
B42: Loan interest | C42: E29 | D42: =IF(ISERROR(INDEX('2022-23 Data'!$B$3:$BJ$20,MATCH($C$4,dfenums,0),MATCH($C42,'2022-23 Data'!$B$2:$BJ$2,0))),"",INDEX('2022-23 Data'!$B$3:$BJ$20,MATCH($C$4,dfenums,0),MATCH($C42,'2022-23 Data'!$B$2:$BJ$2,0))) ->  | H42: =IF(ISERROR(INDEX('2022-23 Data'!$B$3:$BJ$20,MATCH($H$6,dfenums,0),MATCH($C42,'2022-23 Data'!$B$2:$BJ$2,0))),"",INDEX('2022-23 Data'!$B$3:$BJ$20,MATCH($H$6,dfenums,0),MATCH($C42,'2022-23 Data'!$B$2:$BJ$2,0))) ->  | L42: =IF(ISERROR(INDEX('2022-23 Data'!$B$3:$BJ$20,MATCH($L$6,dfenums,0),MATCH($C42,'2022-23 Data'!$B$2:$BJ$2,0))),"",INDEX('2022-23 Data'!$B$3:$BJ$20,MATCH($L$6,dfenums,0),MATCH($C42,'2022-23 Data'!$B$2:$BJ$2,0))) ->  | P42: =IF(ISERROR(INDEX('2022-23 Data'!$B$3:$BJ$20,MATCH($P$6,dfenums,0),MATCH($C42,'2022-23 Data'!$B$2:$BJ$2,0))),"",INDEX('2022-23 Data'!$B$3:$BJ$20,MATCH($P$6,dfenums,0),MATCH($C42,'2022-23 Data'!$B$2:$BJ$2,0))) ->  | T42: =IF(ISERROR(SUM('2022-23 Data'!AI$3:AI$20)/SUM('2022-23 Data'!$C$3:$D$20)),"",SUM('2022-23 Data'!AI$3:AI$20)/SUM('2022-23 Data'!$C$3:$D$20)) -> 4.175696311 | U42: 0.0005952488187 | V42: 0.0003924842603
B43: Direct revenue financing (rev contrib. to cap) | C43: E30 | D43: =IF(ISERROR(INDEX('2022-23 Data'!$B$3:$BJ$20,MATCH($C$4,dfenums,0),MATCH($C43,'2022-23 Data'!$B$2:$BJ$2,0))),"",INDEX('2022-23 Data'!$B$3:$BJ$20,MATCH($C$4,dfenums,0),MATCH($C43,'2022-23 Data'!$B$2:$BJ$2,0))) ->  | H43: =IF(ISERROR(INDEX('2022-23 Data'!$B$3:$BJ$20,MATCH($H$6,dfenums,0),MATCH($C43,'2022-23 Data'!$B$2:$BJ$2,0))),"",INDEX('2022-23 Data'!$B$3:$BJ$20,MATCH($H$6,dfenums,0),MATCH($C43,'2022-23 Data'!$B$2:$BJ$2,0))) ->  | L43: =IF(ISERROR(INDEX('2022-23 Data'!$B$3:$BJ$20,MATCH($L$6,dfenums,0),MATCH($C43,'2022-23 Data'!$B$2:$BJ$2,0))),"",INDEX('2022-23 Data'!$B$3:$BJ$20,MATCH($L$6,dfenums,0),MATCH($C43,'2022-23 Data'!$B$2:$BJ$2,0))) ->  | P43: =IF(ISERROR(INDEX('2022-23 Data'!$B$3:$BJ$20,MATCH($P$6,dfenums,0),MATCH($C43,'2022-23 Data'!$B$2:$BJ$2,0))),"",INDEX('2022-23 Data'!$B$3:$BJ$20,MATCH($P$6,dfenums,0),MATCH($C43,'2022-23 Data'!$B$2:$BJ$2,0))) ->  | T43: =IF(ISERROR(SUM('2022-23 Data'!AJ$3:AJ$20)/SUM('2022-23 Data'!$C$3:$D$20)),"",SUM('2022-23 Data'!AJ$3:AJ$20)/SUM('2022-23 Data'!$C$3:$D$20)) -> 178.9769812 | U43: 0.02551331053 | V43: 0.01682249926
B44: Community focussed extended school staff | C44: E31 | D44: =IF(ISERROR(INDEX('2022-23 Data'!$B$3:$BJ$20,MATCH($C$4,dfenums,0),MATCH($C44,'2022-23 Data'!$B$2:$BJ$2,0))),"",INDEX('2022-23 Data'!$B$3:$BJ$20,MATCH($C$4,dfenums,0),MATCH($C44,'2022-23 Data'!$B$2:$BJ$2,0))) ->  | H44: =IF(ISERROR(INDEX('2022-23 Data'!$B$3:$BJ$20,MATCH($H$6,dfenums,0),MATCH($C44,'2022-23 Data'!$B$2:$BJ$2,0))),"",INDEX('2022-23 Data'!$B$3:$BJ$20,MATCH($H$6,dfenums,0),MATCH($C44,'2022-23 Data'!$B$2:$BJ$2,0))) ->  | L44: =IF(ISERROR(INDEX('2022-23 Data'!$B$3:$BJ$20,MATCH($L$6,dfenums,0),MATCH($C44,'2022-23 Data'!$B$2:$BJ$2,0))),"",INDEX('2022-23 Data'!$B$3:$BJ$20,MATCH($L$6,dfenums,0),MATCH($C44,'2022-23 Data'!$B$2:$BJ$2,0))) ->  | P44: =IF(ISERROR(INDEX('2022-23 Data'!$B$3:$BJ$20,MATCH($P$6,dfenums,0),MATCH($C44,'2022-23 Data'!$B$2:$BJ$2,0))),"",INDEX('2022-23 Data'!$B$3:$BJ$20,MATCH($P$6,dfenums,0),MATCH($C44,'2022-23 Data'!$B$2:$BJ$2,0))) ->  | T44: =IF(ISERROR(SUM('2022-23 Data'!AK$3:AK$20)/SUM('2022-23 Data'!$C$3:$D$20)),"",SUM('2022-23 Data'!AK$3:AK$20)/SUM('2022-23 Data'!$C$3:$D$20)) -> 0 | U44: 0 | V44: 0
B45: Community focussed extended school costs | C45: E32 | D45: =IF(ISERROR(INDEX('2022-23 Data'!$B$3:$BJ$20,MATCH($C$4,dfenums,0),MATCH($C45,'2022-23 Data'!$B$2:$BJ$2,0))),"",INDEX('2022-23 Data'!$B$3:$BJ$20,MATCH($C$4,dfenums,0),MATCH($C45,'2022-23 Data'!$B$2:$BJ$2,0))) ->  | H45: =IF(ISERROR(INDEX('2022-23 Data'!$B$3:$BJ$20,MATCH($H$6,dfenums,0),MATCH($C45,'2022-23 Data'!$B$2:$BJ$2,0))),"",INDEX('2022-23 Data'!$B$3:$BJ$20,MATCH($H$6,dfenums,0),MATCH($C45,'2022-23 Data'!$B$2:$BJ$2,0))) ->  | L45: =IF(ISERROR(INDEX('2022-23 Data'!$B$3:$BJ$20,MATCH($L$6,dfenums,0),MATCH($C45,'2022-23 Data'!$B$2:$BJ$2,0))),"",INDEX('2022-23 Data'!$B$3:$BJ$20,MATCH($L$6,dfenums,0),MATCH($C45,'2022-23 Data'!$B$2:$BJ$2,0))) ->  | P45: =IF(ISERROR(INDEX('2022-23 Data'!$B$3:$BJ$20,MATCH($P$6,dfenums,0),MATCH($C45,'2022-23 Data'!$B$2:$BJ$2,0))),"",INDEX('2022-23 Data'!$B$3:$BJ$20,MATCH($P$6,dfenums,0),MATCH($C45,'2022-23 Data'!$B$2:$BJ$2,0))) ->  | T45: =IF(ISERROR(SUM('2022-23 Data'!AL$3:AL$20)/SUM('2022-23 Data'!$C$3:$D$20)),"",SUM('2022-23 Data'!AL$3:AL$20)/SUM('2022-23 Data'!$C$3:$D$20)) -> 0 | U45: 0 | V45: 0
B46: Total Expenditure | D46: =IF($C$4>0,SUM(D13:D45),"") ->  | E46: =IF($C$4>0,SUM(E13:E45),"") ->  | F46: =IF($C$4>0,SUM(F13:F45),"") ->  | H46: =IF($C$4>0,SUM(H13:H45),"") ->  | I46: =IF($C$4>0,SUM(I13:I45),"") ->  | J46: =IF($C$4>0,SUM(J13:J45),"") ->  | L46: =IF($C$4>0,SUM(L13:L45),"") ->  | M46: =IF($C$4>0,SUM(M13:M45),"") ->  | N46: =IF($C$4>0,SUM(N13:N45),"") ->  | P46: =IF($C$4>0,SUM(P13:P45),"") ->  | Q46: =IF($C$4>0,SUM(Q13:Q45),"") ->  | R46: =IF($C$4>0,SUM(R13:R45),"") ->  | T46: =IF(ISERROR(SUM(T13:T45)),"",SUM(T13:T45)) -> 7015.043423 | U46: =IF(ISERROR(SUM(U13:U45)),"",SUM(U13:U45)) -> 1 | V46: =IF(ISERROR(SUM(V13:V45)),"",SUM(V13:V45)) -> 0.6593616786
B48: INCOME
B49: Funds delegated by the LEA | C49: I01 | D49: =IF(ISERROR(INDEX('2022-23 Data'!$B$3:$BJ$20,MATCH($C$4,dfenums,0),MATCH("I01 OTHER",'2022-23 Data'!$B$2:$BJ$2,0))),"",INDEX('2022-23 Data'!$B$3:$BJ$20,MATCH($C$4,dfenums,0),MATCH("I01 OTHER",'2022-23 Data'!$B$2:$BJ$2,0))) ->  | E49: =IF(C4>0,D49/(E4-VLOOKUP(C4,'2022-23 Data'!A3:E20,5,0))) -> FALSE | F49: =IF($C$4>0,D49/$D$72) -> FALSE | H49: =IF(ISERROR(INDEX('2022-23 Data'!$B$3:$BJ$20,MATCH($H$6,dfenums,0),MATCH("I01 OTHER",'2022-23 Data'!$B$2:$BJ$2,0))),"",INDEX('2022-23 Data'!$B$3:$BJ$20,MATCH($H$6,dfenums,0),MATCH("I01 OTHER",'2022-23 Data'!$B$2:$BJ$2,0))) ->  | I49: =IF(H6>0,H49/(I6-VLOOKUP(H6,'2022-23 Data'!A3:E20,5,0))) -> FALSE | J49: =IF($H$6>0,H49/$H$72) -> FALSE | L49: =IF(ISERROR(INDEX('2022-23 Data'!$B$3:$BJ$20,MATCH($L$6,dfenums,0),MATCH("I01 OTHER",'2022-23 Data'!$B$2:$BJ$2,0))),"",INDEX('2022-23 Data'!$B$3:$BJ$20,MATCH($L$6,dfenums,0),MATCH("I01 OTHER",'2022-23 Data'!$B$2:$BJ$2,0))) ->  | M49: =IF(L6>0,L49/(M6-VLOOKUP(L6,'2022-23 Data'!A3:E20,5,0))) -> FALSE | N49: =IF($L$6>0,L49/$L$72) -> FALSE | P49: =IF(ISERROR(INDEX('2022-23 Data'!$B$3:$BJ$20,MATCH($P$6,dfenums,0),MATCH("I01 OTHER",'2022-23 Data'!$B$2:$BJ$2,0))),"",INDEX('2022-23 Data'!$B$3:$BJ$20,MATCH($P$6,dfenums,0),MATCH("I01 OTHER",'2022-23 Data'!$B$2:$BJ$2,0))) ->  | Q49: =IF(P6>0,P49/(Q6-VLOOKUP(P6,'2022-23 Data'!A3:E20,5,0))) -> FALSE | R49: =IF($P$6>0,P49/$P$72) -> FALSE | T49: =IF(ISERROR(SUM('2022-23 Data'!AM$3:AM$20)/SUM('2022-23 Data'!$C$3:$D$20)),"",SUM('2022-23 Data'!AM$3:AM$20)/SUM('2022-23 Data'!$C$3:$D$20)) -> -4440.994672 | U49: =IF(ISERROR(T49/$T$72),"",T49/$T$72) -> 0.4174203244
B50: Funding for sixth form students | C50: I02 | D50: =IF(ISERROR(INDEX('2022-23 Data'!$B$3:$BJ$20,MATCH($C$4,dfenums,0),MATCH($C50,'2022-23 Data'!$B$2:$BJ$2,0))),"",INDEX('2022-23 Data'!$B$3:$BJ$20,MATCH($C$4,dfenums,0),MATCH($C50,'2022-23 Data'!$B$2:$BJ$2,0))) ->  | E50: =IF(ISERROR(IF($C$4>0,D50/$F$4)),0,IF($C$4>0,D50/$F$4)) -> FALSE | F50: =IF($C$4>0,D50/$D$72) -> FALSE | H50: =IF(ISERROR(INDEX('2022-23 Data'!$B$3:$BJ$20,MATCH($H$6,dfenums,0),MATCH($C50,'2022-23 Data'!$B$2:$BJ$2,0))),"",INDEX('2022-23 Data'!$B$3:$BJ$20,MATCH($H$6,dfenums,0),MATCH($C50,'2022-23 Data'!$B$2:$BJ$2,0))) ->  | I50: =IF($H$6>0,H50/$J$6) -> FALSE | J50: =IF($H$6>0,H50/$H$72) -> FALSE | L50: =IF(ISERROR(INDEX('2022-23 Data'!$B$3:$BJ$20,MATCH($L$6,dfenums,0),MATCH($C50,'2022-23 Data'!$B$2:$BJ$2,0))),"",INDEX('2022-23 Data'!$B$3:$BJ$20,MATCH($L$6,dfenums,0),MATCH($C50,'2022-23 Data'!$B$2:$BJ$2,0))) ->  | M50: =IF($L$6>0,L50/$N$6) -> FALSE | N50: =IF($L$6>0,L50/$L$72) -> FALSE | P50: =IF(ISERROR(INDEX('2022-23 Data'!$B$3:$BJ$20,MATCH($P$6,dfenums,0),MATCH($C50,'2022-23 Data'!$B$2:$BJ$2,0))),"",INDEX('2022-23 Data'!$B$3:$BJ$20,MATCH($P$6,dfenums,0),MATCH($C50,'2022-23 Data'!$B$2:$BJ$2,0))) ->  | Q50: =IF($P$6>0,P50/$R$6) -> FALSE | R50: =IF($P$6>0,P50/$P$72) -> FALSE | T50: =IF(ISERROR(SUM('2022-23 Data'!AQ$3:AQ$20)/SUM('2022-23 Data'!$D$3:$D$20)),"",SUM('2022-23 Data'!AQ$3:AQ$20)/SUM('2022-23 Data'!$D$3:$D$20)) -> -4897.024309 | U50: =IF(ISERROR(T50/$T$72),"",T50/$T$72) -> 0.4602837037
B51: Notional SEN budget | C51: I01 | D51: =IF(ISERROR(INDEX('2022-23 Data'!$B$3:$BJ$20,MATCH($C$4,dfenums,0),MATCH($B51,'2022-23 Data'!$B$2:$BJ$2,0))),"",INDEX('2022-23 Data'!$B$3:$BJ$20,MATCH($C$4,dfenums,0),MATCH($B51,'2022-23 Data'!$B$2:$BJ$2,0))) ->  | E51: =IF($C$4>0,D51/$E$4) -> FALSE | F51: =IF($C$4>0,D51/$D$72) -> FALSE | H51: =IF(ISERROR(INDEX('2022-23 Data'!$B$3:$BJ$20,MATCH($H$6,dfenums,0),MATCH($B51,'2022-23 Data'!$B$2:$BJ$2,0))),"",INDEX('2022-23 Data'!$B$3:$BJ$20,MATCH($H$6,dfenums,0),MATCH($B51,'2022-23 Data'!$B$2:$BJ$2,0))) ->  | I51: =IF($P$6>0,H51/$I$6) -> FALSE | J51: =IF($H$6>0,H51/$H$72) -> FALSE | L51: =IF(ISERROR(INDEX('2022-23 Data'!$B$3:$BJ$20,MATCH($L$6,dfenums,0),MATCH($B51,'2022-23 Data'!$B$2:$BJ$2,0))),"",INDEX('2022-23 Data'!$B$3:$BJ$20,MATCH($L$6,dfenums,0),MATCH($B51,'2022-23 Data'!$B$2:$BJ$2,0))) ->  | M51: =IF($P$6>0,L51/$M$6) -> FALSE | N51: =IF($L$6>0,L51/$L$72) -> FALSE | P51: =IF(ISERROR(INDEX('2022-23 Data'!$B$3:$BJ$20,MATCH($P$6,dfenums,0),MATCH($B51,'2022-23 Data'!$B$2:$BJ$2,0))),"",INDEX('2022-23 Data'!$B$3:$BJ$20,MATCH($P$6,dfenums,0),MATCH($B51,'2022-23 Data'!$B$2:$BJ$2,0))) ->  | Q51: =IF($P$6>0,P51/$Q$6) -> FALSE | R51: =IF($P$6>0,P51/$P$72) -> FALSE | T51: =IF(ISERROR(SUM('2022-23 Data'!AN$3:AN$20)/SUM('2022-23 Data'!$C$3:$D$20)),"",SUM('2022-23 Data'!AN$3:AN$20)/SUM('2022-23 Data'!$C$3:$D$20)) -> -641.4351427 | U51: 0.06029011182
B52: SRP Funding | C52: I01 & I03 | D52: =IF(ISERROR(INDEX('2022-23 Data'!$B$3:$BJ$20,MATCH($C$4,dfenums,0),MATCH("Unit Funding",'2022-23 Data'!$B$2:$BJ$2,0))),"",INDEX('2022-23 Data'!$B$3:$BJ$20,MATCH($C$4,dfenums,0),MATCH("Unit Funding",'2022-23 Data'!$B$2:$BJ$2,0))) ->  | E52: Meaningful comparison is not possible in this area
B53: High Needs Pupils Funding | C53: I01 & I03 | D53: =IF(ISERROR(INDEX('2022-23 Data'!$B$3:$BJ$20,MATCH($C$4,dfenums,0),MATCH("HNP Funding",'2022-23 Data'!$B$2:$BJ$2,0))),"",INDEX('2022-23 Data'!$B$3:$BJ$20,MATCH($C$4,dfenums,0),MATCH("HNP Funding",'2022-23 Data'!$B$2:$BJ$2,0))) -> 
B54: Funding for minority ethnic pupils | C54: I04 | D54: =IF(ISERROR(INDEX('2022-23 Data'!$B$3:$BJ$20,MATCH($C$4,dfenums,0),MATCH($C54,'2022-23 Data'!$B$2:$BJ$2,0))),"",INDEX('2022-23 Data'!$B$3:$BJ$20,MATCH($C$4,dfenums,0),MATCH($C54,'2022-23 Data'!$B$2:$BJ$2,0))) ->  | E54: =IF($C$4>0,D54/($E$4+$F$4),"") ->  | F54: =IF($C$4>0,D54/$D$72,"") ->  | H54: =IF(ISERROR(INDEX('2022-23 Data'!$B$3:$BJ$20,MATCH($H$6,dfenums,0),MATCH($C54,'2022-23 Data'!$B$2:$BJ$2,0))),"",INDEX('2022-23 Data'!$B$3:$BJ$20,MATCH($H$6,dfenums,0),MATCH($C54,'2022-23 Data'!$B$2:$BJ$2,0))) ->  | I54: =IF($H$6>0,H54/($I$6+$J$6),"") ->  | J54: =IF($H$6>0,H54/$H$72,"") ->  | L54: =IF(ISERROR(INDEX('2022-23 Data'!$B$3:$BJ$20,MATCH($L$6,dfenums,0),MATCH($C54,'2022-23 Data'!$B$2:$BJ$2,0))),"",INDEX('2022-23 Data'!$B$3:$BJ$20,MATCH($L$6,dfenums,0),MATCH($C54,'2022-23 Data'!$B$2:$BJ$2,0))) ->  | M54: =IF($L$6>0,L54/($M$6+$N$6),"") ->  | N54: =IF($L$6>0,L54/$L$72,"") ->  | P54: =IF(ISERROR(INDEX('2022-23 Data'!$B$3:$BJ$20,MATCH($P$6,dfenums,0),MATCH($C54,'2022-23 Data'!$B$2:$BJ$2,0))),"",INDEX('2022-23 Data'!$B$3:$BJ$20,MATCH($P$6,dfenums,0),MATCH($C54,'2022-23 Data'!$B$2:$BJ$2,0))) ->  | Q54: =IF($P$6>0,P54/($Q$6+$R$6),"") ->  | R54: =IF($P$6>0,P54/$P$72,"") ->  | T54: =IF(ISERROR(SUM('2022-23 Data'!AR$3:AR$20)/SUM('2022-23 Data'!$C$3:$D$20)),"",SUM('2022-23 Data'!AR$3:AR$20)/SUM('2022-23 Data'!$C$3:$D$20)) -> 0 | U54: 0
B55: Pupil Premium | C55: I05 | D55: =IF(ISERROR(INDEX('2022-23 Data'!$B$3:$BJ$20,MATCH($C$4,dfenums,0),MATCH($C55,'2022-23 Data'!$B$2:$BJ$2,0))),"",INDEX('2022-23 Data'!$B$3:$BJ$20,MATCH($C$4,dfenums,0),MATCH($C55,'2022-23 Data'!$B$2:$BJ$2,0))) ->  | E55: =IF($C$4>0,D55/($E$4+$F$4),"") ->  | F55: =IF($C$4>0,D55/$D$72,"") ->  | H55: =IF(ISERROR(INDEX('2022-23 Data'!$B$3:$BJ$20,MATCH($H$6,dfenums,0),MATCH($C55,'2022-23 Data'!$B$2:$BJ$2,0))),"",INDEX('2022-23 Data'!$B$3:$BJ$20,MATCH($H$6,dfenums,0),MATCH($C55,'2022-23 Data'!$B$2:$BJ$2,0))) ->  | I55: =IF($H$6>0,H55/($I$6+$J$6),"") ->  | J55: =IF($H$6>0,H55/$H$72,"") ->  | L55: =IF(ISERROR(INDEX('2022-23 Data'!$B$3:$BJ$20,MATCH($L$6,dfenums,0),MATCH($C55,'2022-23 Data'!$B$2:$BJ$2,0))),"",INDEX('2022-23 Data'!$B$3:$BJ$20,MATCH($L$6,dfenums,0),MATCH($C55,'2022-23 Data'!$B$2:$BJ$2,0))) ->  | M55: =IF($L$6>0,L55/($M$6+$N$6),"") ->  | N55: =IF($L$6>0,L55/$L$72,"") ->  | P55: =IF(ISERROR(INDEX('2022-23 Data'!$B$3:$BJ$20,MATCH($P$6,dfenums,0),MATCH($C55,'2022-23 Data'!$B$2:$BJ$2,0))),"",INDEX('2022-23 Data'!$B$3:$BJ$20,MATCH($P$6,dfenums,0),MATCH($C55,'2022-23 Data'!$B$2:$BJ$2,0))) ->  | Q55: =IF($P$6>0,P55/($Q$6+$R$6),"") ->  | R55: =IF($P$6>0,P55/$P$72,"") ->  | T55: =IF(ISERROR(SUM('2022-23 Data'!AS$3:AS$20)/SUM('2022-23 Data'!$C$3:$D$20)),"",SUM('2022-23 Data'!AS$3:AS$20)/SUM('2022-23 Data'!$C$3:$D$20)) -> -170.4986995 | U55: 0.01602560411
B56: Other government grants | C56: I06 | D56: =IF(ISERROR(INDEX('2022-23 Data'!$B$3:$BJ$20,MATCH($C$4,dfenums,0),MATCH($C56,'2022-23 Data'!$B$2:$BJ$2,0))),"",INDEX('2022-23 Data'!$B$3:$BJ$20,MATCH($C$4,dfenums,0),MATCH($C56,'2022-23 Data'!$B$2:$BJ$2,0))) ->  | H56: =IF(ISERROR(INDEX('2022-23 Data'!$B$3:$BJ$20,MATCH($H$6,dfenums,0),MATCH($C56,'2022-23 Data'!$B$2:$BJ$2,0))),"",INDEX('2022-23 Data'!$B$3:$BJ$20,MATCH($H$6,dfenums,0),MATCH($C56,'2022-23 Data'!$B$2:$BJ$2,0))) ->  | L56: =IF(ISERROR(INDEX('2022-23 Data'!$B$3:$BJ$20,MATCH($L$6,dfenums,0),MATCH($C56,'2022-23 Data'!$B$2:$BJ$2,0))),"",INDEX('2022-23 Data'!$B$3:$BJ$20,MATCH($L$6,dfenums,0),MATCH($C56,'2022-23 Data'!$B$2:$BJ$2,0))) ->  | P56: =IF(ISERROR(INDEX('2022-23 Data'!$B$3:$BJ$20,MATCH($P$6,dfenums,0),MATCH($C56,'2022-23 Data'!$B$2:$BJ$2,0))),"",INDEX('2022-23 Data'!$B$3:$BJ$20,MATCH($P$6,dfenums,0),MATCH($C56,'2022-23 Data'!$B$2:$BJ$2,0))) ->  | T56: =IF(ISERROR(SUM('2022-23 Data'!AT$3:AT$20)/SUM('2022-23 Data'!$C$3:$D$20)),"",SUM('2022-23 Data'!AT$3:AT$20)/SUM('2022-23 Data'!$C$3:$D$20)) -> -10.24743117 | U56: 0.0009631819809
B57: Other grants and payments | C57: I07 | D57: =IF(ISERROR(INDEX('2022-23 Data'!$B$3:$BJ$20,MATCH($C$4,dfenums,0),MATCH($C57,'2022-23 Data'!$B$2:$BJ$2,0))),"",INDEX('2022-23 Data'!$B$3:$BJ$20,MATCH($C$4,dfenums,0),MATCH($C57,'2022-23 Data'!$B$2:$BJ$2,0))) ->  | H57: =IF(ISERROR(INDEX('2022-23 Data'!$B$3:$BJ$20,MATCH($H$6,dfenums,0),MATCH($C57,'2022-23 Data'!$B$2:$BJ$2,0))),"",INDEX('2022-23 Data'!$B$3:$BJ$20,MATCH($H$6,dfenums,0),MATCH($C57,'2022-23 Data'!$B$2:$BJ$2,0))) ->  | L57: =IF(ISERROR(INDEX('2022-23 Data'!$B$3:$BJ$20,MATCH($L$6,dfenums,0),MATCH($C57,'2022-23 Data'!$B$2:$BJ$2,0))),"",INDEX('2022-23 Data'!$B$3:$BJ$20,MATCH($L$6,dfenums,0),MATCH($C57,'2022-23 Data'!$B$2:$BJ$2,0))) ->  | P57: =IF(ISERROR(INDEX('2022-23 Data'!$B$3:$BJ$20,MATCH($P$6,dfenums,0),MATCH($C57,'2022-23 Data'!$B$2:$BJ$2,0))),"",INDEX('2022-23 Data'!$B$3:$BJ$20,MATCH($P$6,dfenums,0),MATCH($C57,'2022-23 Data'!$B$2:$BJ$2,0))) ->  | T57: =IF(ISERROR(SUM('2022-23 Data'!AU$3:AU$20)/SUM('2022-23 Data'!$C$3:$D$20)),"",SUM('2022-23 Data'!AU$3:AU$20)/SUM('2022-23 Data'!$C$3:$D$20)) -> -83.11532588 | U57: 0.007812219752
B58: Income from facilities and services | C58: I08 | D58: =IF(ISERROR(INDEX('2022-23 Data'!$B$3:$BJ$20,MATCH($C$4,dfenums,0),MATCH($C58,'2022-23 Data'!$B$2:$BJ$2,0))),"",INDEX('2022-23 Data'!$B$3:$BJ$20,MATCH($C$4,dfenums,0),MATCH($C58,'2022-23 Data'!$B$2:$BJ$2,0))) ->  | E58: =IF($C$4>0,D58/($E$4+$F$4),"") ->  | F58: =IF($C$4>0,D58/$D$72,"") ->  | H58: =IF(ISERROR(INDEX('2022-23 Data'!$B$3:$BJ$20,MATCH($H$6,dfenums,0),MATCH($C58,'2022-23 Data'!$B$2:$BJ$2,0))),"",INDEX('2022-23 Data'!$B$3:$BJ$20,MATCH($H$6,dfenums,0),MATCH($C58,'2022-23 Data'!$B$2:$BJ$2,0))) ->  | I58: =IF($H$6>0,H58/($I$6+$J$6),"") ->  | J58: =IF($H$6>0,H58/$H$72,"") ->  | L58: =IF(ISERROR(INDEX('2022-23 Data'!$B$3:$BJ$20,MATCH($L$6,dfenums,0),MATCH($C58,'2022-23 Data'!$B$2:$BJ$2,0))),"",INDEX('2022-23 Data'!$B$3:$BJ$20,MATCH($L$6,dfenums,0),MATCH($C58,'2022-23 Data'!$B$2:$BJ$2,0))) ->  | M58: =IF($L$6>0,L58/($M$6+$N$6),"") ->  | N58: =IF($L$6>0,L58/$L$72,"") ->  | P58: =IF(ISERROR(INDEX('2022-23 Data'!$B$3:$BJ$20,MATCH($P$6,dfenums,0),MATCH($C58,'2022-23 Data'!$B$2:$BJ$2,0))),"",INDEX('2022-23 Data'!$B$3:$BJ$20,MATCH($P$6,dfenums,0),MATCH($C58,'2022-23 Data'!$B$2:$BJ$2,0))) ->  | Q58: =IF($P$6>0,P58/($Q$6+$R$6),"") ->  | R58: =IF($P$6>0,P58/$P$72,"") ->  | T58: =IF(ISERROR(SUM('2022-23 Data'!AW$3:AW$20)/SUM('2022-23 Data'!$C$3:$D$20)),"",SUM('2022-23 Data'!AW$3:AW$20)/SUM('2022-23 Data'!$C$3:$D$20)) -> -47.43868136 | U58: =IF(ISERROR(T58/$T$72),"",T58/$T$72) -> 0.004458881676
B59: Income from facilities and services | C59: I08b | D59: =IF(ISERROR(INDEX('2022-23 Data'!$B$3:$BJ$20,MATCH($C$4,dfenums,0),MATCH($C59,'2022-23 Data'!$B$2:$BJ$2,0))),"",INDEX('2022-23 Data'!$B$3:$BJ$20,MATCH($C$4,dfenums,0),MATCH($C59,'2022-23 Data'!$B$2:$BJ$2,0))) ->  | H59: =IF(ISERROR(INDEX('2022-23 Data'!$B$3:$BJ$20,MATCH($H$6,dfenums,0),MATCH($C59,'2022-23 Data'!$B$2:$BJ$2,0))),"",INDEX('2022-23 Data'!$B$3:$BJ$20,MATCH($H$6,dfenums,0),MATCH($C59,'2022-23 Data'!$B$2:$BJ$2,0))) ->  | L59: =IF(ISERROR(INDEX('2022-23 Data'!$B$3:$BJ$20,MATCH($L$6,dfenums,0),MATCH($C59,'2022-23 Data'!$B$2:$BJ$2,0))),"",INDEX('2022-23 Data'!$B$3:$BJ$20,MATCH($L$6,dfenums,0),MATCH($C59,'2022-23 Data'!$B$2:$BJ$2,0))) ->  | P59: =IF(ISERROR(INDEX('2022-23 Data'!$B$3:$BJ$20,MATCH($P$6,dfenums,0),MATCH($C59,'2022-23 Data'!$B$2:$BJ$2,0))),"",INDEX('2022-23 Data'!$B$3:$BJ$20,MATCH($P$6,dfenums,0),MATCH($C59,'2022-23 Data'!$B$2:$BJ$2,0))) ->  | T59: =IF(ISERROR(SUM('2022-23 Data'!AW$3:AW$20)/SUM('2022-23 Data'!$C$3:$D$20)),"",SUM('2022-23 Data'!AW$3:AW$20)/SUM('2022-23 Data'!$C$3:$D$20)) -> -47.43868136 | U59: 0.004458881676
B60: Income from catering | C60: I09 | D60: =IF(ISERROR(INDEX('2022-23 Data'!$B$3:$BJ$20,MATCH($C$4,dfenums,0),MATCH($C60,'2022-23 Data'!$B$2:$BJ$2,0))),"",INDEX('2022-23 Data'!$B$3:$BJ$20,MATCH($C$4,dfenums,0),MATCH($C60,'2022-23 Data'!$B$2:$BJ$2,0))) ->  | H60: =IF(ISERROR(INDEX('2022-23 Data'!$B$3:$BJ$20,MATCH($H$6,dfenums,0),MATCH($C60,'2022-23 Data'!$B$2:$BJ$2,0))),"",INDEX('2022-23 Data'!$B$3:$BJ$20,MATCH($H$6,dfenums,0),MATCH($C60,'2022-23 Data'!$B$2:$BJ$2,0))) ->  | L60: =IF(ISERROR(INDEX('2022-23 Data'!$B$3:$BJ$20,MATCH($L$6,dfenums,0),MATCH($C60,'2022-23 Data'!$B$2:$BJ$2,0))),"",INDEX('2022-23 Data'!$B$3:$BJ$20,MATCH($L$6,dfenums,0),MATCH($C60,'2022-23 Data'!$B$2:$BJ$2,0))) ->  | P60: =IF(ISERROR(INDEX('2022-23 Data'!$B$3:$BJ$20,MATCH($P$6,dfenums,0),MATCH($C60,'2022-23 Data'!$B$2:$BJ$2,0))),"",INDEX('2022-23 Data'!$B$3:$BJ$20,MATCH($P$6,dfenums,0),MATCH($C60,'2022-23 Data'!$B$2:$BJ$2,0))) ->  | T60: =IF(ISERROR(SUM('2022-23 Data'!AX$3:AX$20)/SUM('2022-23 Data'!$C$3:$D$20)),"",SUM('2022-23 Data'!AX$3:AX$20)/SUM('2022-23 Data'!$C$3:$D$20)) -> -70.40080477 | U60: 0.006617149746
B61: Receipts from supply teachers insurance claims | C61: I10 | D61: =IF(ISERROR(INDEX('2022-23 Data'!$B$3:$BJ$20,MATCH($C$4,dfenums,0),MATCH($C61,'2022-23 Data'!$B$2:$BJ$2,0))),"",INDEX('2022-23 Data'!$B$3:$BJ$20,MATCH($C$4,dfenums,0),MATCH($C61,'2022-23 Data'!$B$2:$BJ$2,0))) ->  | H61: =IF(ISERROR(INDEX('2022-23 Data'!$B$3:$BJ$20,MATCH($H$6,dfenums,0),MATCH($C61,'2022-23 Data'!$B$2:$BJ$2,0))),"",INDEX('2022-23 Data'!$B$3:$BJ$20,MATCH($H$6,dfenums,0),MATCH($C61,'2022-23 Data'!$B$2:$BJ$2,0))) ->  | L61: =IF(ISERROR(INDEX('2022-23 Data'!$B$3:$BJ$20,MATCH($L$6,dfenums,0),MATCH($C61,'2022-23 Data'!$B$2:$BJ$2,0))),"",INDEX('2022-23 Data'!$B$3:$BJ$20,MATCH($L$6,dfenums,0),MATCH($C61,'2022-23 Data'!$B$2:$BJ$2,0))) ->  | P61: =IF(ISERROR(INDEX('2022-23 Data'!$B$3:$BJ$20,MATCH($P$6,dfenums,0),MATCH($C61,'2022-23 Data'!$B$2:$BJ$2,0))),"",INDEX('2022-23 Data'!$B$3:$BJ$20,MATCH($P$6,dfenums,0),MATCH($C61,'2022-23 Data'!$B$2:$BJ$2,0))) ->  | T61: =IF(ISERROR(SUM('2022-23 Data'!AY$3:AY$20)/SUM('2022-23 Data'!$C$3:$D$20)),"",SUM('2022-23 Data'!AY$3:AY$20)/SUM('2022-23 Data'!$C$3:$D$20)) -> -1.867099502 | U61: 0.0001754934057
B62: Receipts from other insurance claims | C62: I11 | D62: =IF(ISERROR(INDEX('2022-23 Data'!$B$3:$BJ$20,MATCH($C$4,dfenums,0),MATCH($C62,'2022-23 Data'!$B$2:$BJ$2,0))),"",INDEX('2022-23 Data'!$B$3:$BJ$20,MATCH($C$4,dfenums,0),MATCH($C62,'2022-23 Data'!$B$2:$BJ$2,0))) ->  | H62: =IF(ISERROR(INDEX('2022-23 Data'!$B$3:$BJ$20,MATCH($H$6,dfenums,0),MATCH($C62,'2022-23 Data'!$B$2:$BJ$2,0))),"",INDEX('2022-23 Data'!$B$3:$BJ$20,MATCH($H$6,dfenums,0),MATCH($C62,'2022-23 Data'!$B$2:$BJ$2,0))) ->  | L62: =IF(ISERROR(INDEX('2022-23 Data'!$B$3:$BJ$20,MATCH($L$6,dfenums,0),MATCH($C62,'2022-23 Data'!$B$2:$BJ$2,0))),"",INDEX('2022-23 Data'!$B$3:$BJ$20,MATCH($L$6,dfenums,0),MATCH($C62,'2022-23 Data'!$B$2:$BJ$2,0))) ->  | P62: =IF(ISERROR(INDEX('2022-23 Data'!$B$3:$BJ$20,MATCH($P$6,dfenums,0),MATCH($C62,'2022-23 Data'!$B$2:$BJ$2,0))),"",INDEX('2022-23 Data'!$B$3:$BJ$20,MATCH($P$6,dfenums,0),MATCH($C62,'2022-23 Data'!$B$2:$BJ$2,0))) ->  | T62: =IF(ISERROR(SUM('2022-23 Data'!AZ$3:AZ$20)/SUM('2022-23 Data'!$C$3:$D$20)),"",SUM('2022-23 Data'!AZ$3:AZ$20)/SUM('2022-23 Data'!$C$3:$D$20)) -> -10.63920227 | U62: 0.001000005538
B63: Income from contributions to visits etc. | C63: I12 | D63: =IF(ISERROR(INDEX('2022-23 Data'!$B$3:$BJ$20,MATCH($C$4,dfenums,0),MATCH($C63,'2022-23 Data'!$B$2:$BJ$2,0))),"",INDEX('2022-23 Data'!$B$3:$BJ$20,MATCH($C$4,dfenums,0),MATCH($C63,'2022-23 Data'!$B$2:$BJ$2,0))) ->  | H63: =IF(ISERROR(INDEX('2022-23 Data'!$B$3:$BJ$20,MATCH($H$6,dfenums,0),MATCH($C63,'2022-23 Data'!$B$2:$BJ$2,0))),"",INDEX('2022-23 Data'!$B$3:$BJ$20,MATCH($H$6,dfenums,0),MATCH($C63,'2022-23 Data'!$B$2:$BJ$2,0))) ->  | L63: =IF(ISERROR(INDEX('2022-23 Data'!$B$3:$BJ$20,MATCH($L$6,dfenums,0),MATCH($C63,'2022-23 Data'!$B$2:$BJ$2,0))),"",INDEX('2022-23 Data'!$B$3:$BJ$20,MATCH($L$6,dfenums,0),MATCH($C63,'2022-23 Data'!$B$2:$BJ$2,0))) ->  | P63: =IF(ISERROR(INDEX('2022-23 Data'!$B$3:$BJ$20,MATCH($P$6,dfenums,0),MATCH($C63,'2022-23 Data'!$B$2:$BJ$2,0))),"",INDEX('2022-23 Data'!$B$3:$BJ$20,MATCH($P$6,dfenums,0),MATCH($C63,'2022-23 Data'!$B$2:$BJ$2,0))) ->  | T63: =IF(ISERROR(SUM('2022-23 Data'!BA$3:BA$20)/SUM('2022-23 Data'!$C$3:$D$20)),"",SUM('2022-23 Data'!BA$3:BA$20)/SUM('2022-23 Data'!$C$3:$D$20)) -> -80.49526046 | U63: 0.007565953174
B64: Donations and/or voluntary funds | C64: I13 | D64: =IF(ISERROR(INDEX('2022-23 Data'!$B$3:$BJ$20,MATCH($C$4,dfenums,0),MATCH($C64,'2022-23 Data'!$B$2:$BJ$2,0))),"",INDEX('2022-23 Data'!$B$3:$BJ$20,MATCH($C$4,dfenums,0),MATCH($C64,'2022-23 Data'!$B$2:$BJ$2,0))) ->  | H64: =IF(ISERROR(INDEX('2022-23 Data'!$B$3:$BJ$20,MATCH($H$6,dfenums,0),MATCH($C64,'2022-23 Data'!$B$2:$BJ$2,0))),"",INDEX('2022-23 Data'!$B$3:$BJ$20,MATCH($H$6,dfenums,0),MATCH($C64,'2022-23 Data'!$B$2:$BJ$2,0))) ->  | L64: =IF(ISERROR(INDEX('2022-23 Data'!$B$3:$BJ$20,MATCH($L$6,dfenums,0),MATCH($C64,'2022-23 Data'!$B$2:$BJ$2,0))),"",INDEX('2022-23 Data'!$B$3:$BJ$20,MATCH($L$6,dfenums,0),MATCH($C64,'2022-23 Data'!$B$2:$BJ$2,0))) ->  | P64: =IF(ISERROR(INDEX('2022-23 Data'!$B$3:$BJ$20,MATCH($P$6,dfenums,0),MATCH($C64,'2022-23 Data'!$B$2:$BJ$2,0))),"",INDEX('2022-23 Data'!$B$3:$BJ$20,MATCH($P$6,dfenums,0),MATCH($C64,'2022-23 Data'!$B$2:$BJ$2,0))) ->  | T64: =IF(ISERROR(SUM('2022-23 Data'!BB$3:BB$20)/SUM('2022-23 Data'!$C$3:$D$20)),"",SUM('2022-23 Data'!BB$3:BB$20)/SUM('2022-23 Data'!$C$3:$D$20)) -> -63.63451658 | U64: 0.005981169202
B65: Pupil focussed extended school funding &/or grants | C65: I15 | D65: =IF(ISERROR(INDEX('2022-23 Data'!$B$3:$BJ$20,MATCH($C$4,dfenums,0),MATCH($C65,'2022-23 Data'!$B$2:$BJ$2,0))),"",INDEX('2022-23 Data'!$B$3:$BJ$20,MATCH($C$4,dfenums,0),MATCH($C65,'2022-23 Data'!$B$2:$BJ$2,0))) ->  | H65: =IF(ISERROR(INDEX('2022-23 Data'!$B$3:$BJ$20,MATCH($H$6,dfenums,0),MATCH($C65,'2022-23 Data'!$B$2:$BJ$2,0))),"",INDEX('2022-23 Data'!$B$3:$BJ$20,MATCH($H$6,dfenums,0),MATCH($C65,'2022-23 Data'!$B$2:$BJ$2,0))) ->  | L65: =IF(ISERROR(INDEX('2022-23 Data'!$B$3:$BJ$20,MATCH($L$6,dfenums,0),MATCH($C65,'2022-23 Data'!$B$2:$BJ$2,0))),"",INDEX('2022-23 Data'!$B$3:$BJ$20,MATCH($L$6,dfenums,0),MATCH($C65,'2022-23 Data'!$B$2:$BJ$2,0))) ->  | P65: =IF(ISERROR(INDEX('2022-23 Data'!$B$3:$BJ$20,MATCH($P$6,dfenums,0),MATCH($C65,'2022-23 Data'!$B$2:$BJ$2,0))),"",INDEX('2022-23 Data'!$B$3:$BJ$20,MATCH($P$6,dfenums,0),MATCH($C65,'2022-23 Data'!$B$2:$BJ$2,0))) ->  | T65: =IF(ISERROR(SUM('2022-23 Data'!BC$3:BC$20)/SUM('2022-23 Data'!$C$3:$D$20)),"",SUM('2022-23 Data'!BC$3:BC$20)/SUM('2022-23 Data'!$C$3:$D$20)) -> 0 | U65: 0
B66: Com focussed extended school funding &/or grants | C66: I16 | D66: =IF(ISERROR(INDEX('2022-23 Data'!$B$3:$BJ$20,MATCH($C$4,dfenums,0),MATCH($C66,'2022-23 Data'!$B$2:$BJ$2,0))),"",INDEX('2022-23 Data'!$B$3:$BJ$20,MATCH($C$4,dfenums,0),MATCH($C66,'2022-23 Data'!$B$2:$BJ$2,0))) ->  | H66: =IF(ISERROR(INDEX('2022-23 Data'!$B$3:$BJ$20,MATCH($H$6,dfenums,0),MATCH($C66,'2022-23 Data'!$B$2:$BJ$2,0))),"",INDEX('2022-23 Data'!$B$3:$BJ$20,MATCH($H$6,dfenums,0),MATCH($C66,'2022-23 Data'!$B$2:$BJ$2,0))) ->  | L66: =IF(ISERROR(INDEX('2022-23 Data'!$B$3:$BJ$20,MATCH($L$6,dfenums,0),MATCH($C66,'2022-23 Data'!$B$2:$BJ$2,0))),"",INDEX('2022-23 Data'!$B$3:$BJ$20,MATCH($L$6,dfenums,0),MATCH($C66,'2022-23 Data'!$B$2:$BJ$2,0))) ->  | P66: =IF(ISERROR(INDEX('2022-23 Data'!$B$3:$BJ$20,MATCH($P$6,dfenums,0),MATCH($C66,'2022-23 Data'!$B$2:$BJ$2,0))),"",INDEX('2022-23 Data'!$B$3:$BJ$20,MATCH($P$6,dfenums,0),MATCH($C66,'2022-23 Data'!$B$2:$BJ$2,0))) ->  | T66: =IF(ISERROR(SUM('2022-23 Data'!BD$3:BD$20)/SUM('2022-23 Data'!$C$3:$D$20)),"",SUM('2022-23 Data'!BD$3:BD$20)/SUM('2022-23 Data'!$C$3:$D$20)) -> 0 | U66: 0
B67: Com focussed extended school facilities income | C67: I17 | D67: =IF(ISERROR(INDEX('2022-23 Data'!$B$3:$BJ$20,MATCH($C$4,dfenums,0),MATCH($C67,'2022-23 Data'!$B$2:$BJ$2,0))),"",INDEX('2022-23 Data'!$B$3:$BJ$20,MATCH($C$4,dfenums,0),MATCH($C67,'2022-23 Data'!$B$2:$BJ$2,0))) ->  | H67: =IF(ISERROR(INDEX('2022-23 Data'!$B$3:$BJ$20,MATCH($H$6,dfenums,0),MATCH($C67,'2022-23 Data'!$B$2:$BJ$2,0))),"",INDEX('2022-23 Data'!$B$3:$BJ$20,MATCH($H$6,dfenums,0),MATCH($C67,'2022-23 Data'!$B$2:$BJ$2,0))) ->  | L67: =IF(ISERROR(INDEX('2022-23 Data'!$B$3:$BJ$20,MATCH($L$6,dfenums,0),MATCH($C67,'2022-23 Data'!$B$2:$BJ$2,0))),"",INDEX('2022-23 Data'!$B$3:$BJ$20,MATCH($L$6,dfenums,0),MATCH($C67,'2022-23 Data'!$B$2:$BJ$2,0))) ->  | P67: =IF(ISERROR(INDEX('2022-23 Data'!$B$3:$BJ$20,MATCH($P$6,dfenums,0),MATCH($C67,'2022-23 Data'!$B$2:$BJ$2,0))),"",INDEX('2022-23 Data'!$B$3:$BJ$20,MATCH($P$6,dfenums,0),MATCH($C67,'2022-23 Data'!$B$2:$BJ$2,0))) ->  | T67: =IF(ISERROR(SUM('2022-23 Data'!BE$3:BE$20)/SUM('2022-23 Data'!$C$3:$D$20)),"",SUM('2022-23 Data'!BE$3:BE$20)/SUM('2022-23 Data'!$C$3:$D$20)) -> 0 | U67: 0
B68: Additional Grant for Schools | C68: I18 | D68: =IF(ISERROR(INDEX('2022-23 Data'!$B$3:$BJ$20,MATCH($C$4,dfenums,0),MATCH($C68,'2022-23 Data'!$B$2:$BJ$2,0))),"",INDEX('2022-23 Data'!$B$3:$BJ$20,MATCH($C$4,dfenums,0),MATCH($C68,'2022-23 Data'!$B$2:$BJ$2,0))) ->  | H68: =IF(ISERROR(INDEX('2022-23 Data'!$B$3:$BJ$20,MATCH($H$6,dfenums,0),MATCH($C68,'2022-23 Data'!$B$2:$BJ$2,0))),"",INDEX('2022-23 Data'!$B$3:$BJ$20,MATCH($H$6,dfenums,0),MATCH($C68,'2022-23 Data'!$B$2:$BJ$2,0))) ->  | L68: =IF(ISERROR(INDEX('2022-23 Data'!$B$3:$BJ$20,MATCH($L$6,dfenums,0),MATCH($C68,'2022-23 Data'!$B$2:$BJ$2,0))),"",INDEX('2022-23 Data'!$B$3:$BJ$20,MATCH($L$6,dfenums,0),MATCH($C68,'2022-23 Data'!$B$2:$BJ$2,0))) ->  | P68: =IF(ISERROR(INDEX('2022-23 Data'!$B$3:$BJ$20,MATCH($P$6,dfenums,0),MATCH($C68,'2022-23 Data'!$B$2:$BJ$2,0))),"",INDEX('2022-23 Data'!$B$3:$BJ$20,MATCH($P$6,dfenums,0),MATCH($C68,'2022-23 Data'!$B$2:$BJ$2,0))) ->  | T68: =IF(ISERROR(SUM('2022-23 Data'!BF$3:BF$20)/SUM('2022-23 Data'!$C$3:$D$20)),"",SUM('2022-23 Data'!BF$3:BF$20)/SUM('2022-23 Data'!$C$3:$D$20)) -> -4.146660627 | U68: 0.0003897551229
B69: Covid-19 furloughed Staff | C69: I18A | D69: =IF(ISERROR(INDEX('2022-23 Data'!$B$3:$BJ$20,MATCH($C$4,dfenums,0),MATCH($C69,'2022-23 Data'!$B$2:$BJ$2,0))),"",INDEX('2022-23 Data'!$B$3:$BJ$20,MATCH($C$4,dfenums,0),MATCH($C69,'2022-23 Data'!$B$2:$BJ$2,0))) ->  | E69: =IF($C$4>0,D69/($E$4+$F$4),"") ->  | F69: =IF($C$4>0,D69/$D$72,"") ->  | H69: =IF(ISERROR(INDEX('2022-23 Data'!$B$3:$BJ$20,MATCH($H$6,dfenums,0),MATCH($C69,'2022-23 Data'!$B$2:$BJ$2,0))),"",INDEX('2022-23 Data'!$B$3:$BJ$20,MATCH($H$6,dfenums,0),MATCH($C69,'2022-23 Data'!$B$2:$BJ$2,0))) ->  | I69: =IF($H$6>0,H69/($I$6+$J$6),"") ->  | J69: =IF($H$6>0,H69/$H$72,"") ->  | L69: =IF(ISERROR(INDEX('2022-23 Data'!$B$3:$BJ$20,MATCH($L$6,dfenums,0),MATCH($C69,'2022-23 Data'!$B$2:$BJ$2,0))),"",INDEX('2022-23 Data'!$B$3:$BJ$20,MATCH($L$6,dfenums,0),MATCH($C69,'2022-23 Data'!$B$2:$BJ$2,0))) ->  | M69: =IF($L$6>0,L69/($M$6+$N$6),"") ->  | N69: =IF($L$6>0,L69/$L$72,"") ->  | P69: =IF(ISERROR(INDEX('2022-23 Data'!$B$3:$BJ$20,MATCH($P$6,dfenums,0),MATCH($C69,'2022-23 Data'!$B$2:$BJ$2,0))),"",INDEX('2022-23 Data'!$B$3:$BJ$20,MATCH($P$6,dfenums,0),MATCH($C69,'2022-23 Data'!$B$2:$BJ$2,0))) ->  | Q69: =IF($P$6>0,P69/($Q$6+$R$6),"") ->  | R69: =IF($P$6>0,P69/$P$72,"") ->  | T69: =IF(ISERROR(SUM('2022-23 Data'!BG$3:BG$20)/SUM('2022-23 Data'!$C$3:$D$20)),"",SUM('2022-23 Data'!BG$3:BG$20)/SUM('2022-23 Data'!$C$3:$D$20)) -> 0 | U69: =IF(ISERROR(T69/$T$72),"",T69/$T$72) -> 0
B70: Covid-19 any other Covid-19 related grant | C70: I18B | D70: =IF(ISERROR(INDEX('2022-23 Data'!$B$3:$BJ$20,MATCH($C$4,dfenums,0),MATCH($C70,'2022-23 Data'!$B$2:$BJ$2,0))),"",INDEX('2022-23 Data'!$B$3:$BJ$20,MATCH($C$4,dfenums,0),MATCH($C70,'2022-23 Data'!$B$2:$BJ$2,0))) ->  | E70: =IF($C$4>0,D70/($E$4+$F$4),"") ->  | F70: =IF($C$4>0,D70/$D$72,"") ->  | H70: =IF(ISERROR(INDEX('2022-23 Data'!$B$3:$BJ$20,MATCH($H$6,dfenums,0),MATCH($C70,'2022-23 Data'!$B$2:$BJ$2,0))),"",INDEX('2022-23 Data'!$B$3:$BJ$20,MATCH($H$6,dfenums,0),MATCH($C70,'2022-23 Data'!$B$2:$BJ$2,0))) ->  | I70: =IF($H$6>0,H70/($I$6+$J$6),"") ->  | J70: =IF($H$6>0,H70/$H$72,"") ->  | L70: =IF(ISERROR(INDEX('2022-23 Data'!$B$3:$BJ$20,MATCH($L$6,dfenums,0),MATCH($C70,'2022-23 Data'!$B$2:$BJ$2,0))),"",INDEX('2022-23 Data'!$B$3:$BJ$20,MATCH($L$6,dfenums,0),MATCH($C70,'2022-23 Data'!$B$2:$BJ$2,0))) ->  | M70: =IF($L$6>0,L70/($M$6+$N$6),"") ->  | N70: =IF($L$6>0,L70/$L$72,"") ->  | P70: =IF(ISERROR(INDEX('2022-23 Data'!$B$3:$BJ$20,MATCH($P$6,dfenums,0),MATCH($C70,'2022-23 Data'!$B$2:$BJ$2,0))),"",INDEX('2022-23 Data'!$B$3:$BJ$20,MATCH($P$6,dfenums,0),MATCH($C70,'2022-23 Data'!$B$2:$BJ$2,0))) ->  | Q70: =IF($P$6>0,P70/($Q$6+$R$6),"") ->  | R70: =IF($P$6>0,P70/$P$72,"") ->  | T70: =IF(ISERROR(SUM('2022-23 Data'!BH$3:BH$20)/SUM('2022-23 Data'!$C$3:$D$20)),"",SUM('2022-23 Data'!BH$3:BH$20)/SUM('2022-23 Data'!$C$3:$D$20)) -> -7.579581257 | U70: =IF(ISERROR(T70/$T$72),"",T70/$T$72) -> 0.0007124240178
B71: Covid-19 £1bn package | C71: I18C | D71: =IF(ISERROR(INDEX('2022-23 Data'!$B$3:$BJ$20,MATCH($C$4,dfenums,0),MATCH($C71,'2022-23 Data'!$B$2:$BJ$2,0))),"",INDEX('2022-23 Data'!$B$3:$BJ$20,MATCH($C$4,dfenums,0),MATCH($C71,'2022-23 Data'!$B$2:$BJ$2,0))) ->  | H71: =IF(ISERROR(INDEX('2022-23 Data'!$B$3:$BJ$20,MATCH($H$6,dfenums,0),MATCH($C71,'2022-23 Data'!$B$2:$BJ$2,0))),"",INDEX('2022-23 Data'!$B$3:$BJ$20,MATCH($H$6,dfenums,0),MATCH($C71,'2022-23 Data'!$B$2:$BJ$2,0))) ->  | L71: =IF(ISERROR(INDEX('2022-23 Data'!$B$3:$BJ$20,MATCH($L$6,dfenums,0),MATCH($C71,'2022-23 Data'!$B$2:$BJ$2,0))),"",INDEX('2022-23 Data'!$B$3:$BJ$20,MATCH($L$6,dfenums,0),MATCH($C71,'2022-23 Data'!$B$2:$BJ$2,0))) ->  | P71: =IF(ISERROR(INDEX('2022-23 Data'!$B$3:$BJ$20,MATCH($P$6,dfenums,0),MATCH($C71,'2022-23 Data'!$B$2:$BJ$2,0))),"",INDEX('2022-23 Data'!$B$3:$BJ$20,MATCH($P$6,dfenums,0),MATCH($C71,'2022-23 Data'!$B$2:$BJ$2,0))) ->  | T71: =IF(ISERROR(SUM('2022-23 Data'!BI$3:BI$20)/SUM('2022-23 Data'!$C$3:$D$20)),"",SUM('2022-23 Data'!BI$3:BI$20)/SUM('2022-23 Data'!$C$3:$D$20)) -> -62.18728924 | U71: 0.005845140643
B72: Total Income (excluding reserves and high needs) | D72: =IF($C$4>0,SUM(D49:D51)+SUM(D54:D71),"") ->  | E72: =IF($C$4>0,SUM(E49:E71),"") ->  | F72: =IF($C$4>0,SUM(F49:F71),"") ->  | H72: =IF($H$6>0,SUM(H49:H51)+SUM(H54:H71),"") ->  | I72: =IF($H$6>0,SUM(I49:I71),"") ->  | J72: =IF($H$6>0,SUM(J49:J71),"") ->  | L72: =IF($L$6>0,SUM(L49:L51)+SUM(L54:L71),"") ->  | M72: =IF($L$6>0,SUM(M49:M71),"") ->  | N72: =IF($L$6>0,SUM(N49:N71),"") ->  | P72: =IF($P$6>0,SUM(P49:P51)+SUM(P54:P71),"") ->  | Q72: =IF($P$6>0,SUM(Q49:Q71),"") ->  | R72: =IF($P$6>0,SUM(R49:R71),"") ->  | T72: =IF(ISERROR(SUM(T49:T71)),"",SUM(T49:T51)+SUM(T54:T71)) -> -10639.14336 | U72: =IF(ISERROR(SUM(U49:U71)),"",SUM(U49:U51)+SUM(U54:U71)) -> 1

Sheet 2022-23 Data (hidden)
B1: PFI School | C1: =Benchmarking!C1&" School Budget Templates" -> 2022-23 School Budget Templates | D1: KCC Finance & Procurement | F1: ="From "&Benchmarking!C1&" Checking Spreadsheet" -> From 2022-23 Checking Spreadsheet | AM1: Self generating | AN1: KCC Finance & Procurement Minus figure | AO1: Self generating HN12, HN3U, HNOU, HNTU & HNUT | AP1: Self generating From Advances HNMT & HN3M | AQ1: =F1 -> From 2022-23 Checking Spreadsheet | BK1: ="From March 20"&RIGHT(Benchmarking!C1,2)&" Advances" -> From March 2023 Advances | BQ1: ="From March 20"&RIGHT(Benchmarking!C1,2)&" Advances" -> From March 2023 Advances
A2: DFE | B2: SCHOOL | C2: 11-16 ROLL | D2: POST-16 ROLL | E2: SRP- ROLL | F2: E01 | G2: E02 | H2: E03 | I2: E04 | J2: E05 | K2: E06 | L2: E07 | M2: E08 | N2: E09 | O2: E10 | P2: E11 | Q2: E12 | R2: E13 | S2: E14 | T2: E15 | U2: E16 | V2: E17 | W2: E18 | X2: E19 | Y2: E20 | Z2: E21 | AA2: E22 | AB2: E23 | AC2: E24 | AD2: E25 | AE2: E26 | AF2: E27 | AG2: E28 | AH2: E28B | AI2: E29 | AJ2: E30 | AK2: E31 | AL2: E32 | AM2: I01 OTHER | AN2: Notional SEN budget | AO2: Unit Funding | AP2: HNP Funding | AQ2: I02 | AR2: I04 | AS2: I05 | AT2: I06 | AU2: I07 | AV2: I08 | AW2: I08b | AX2: I09 | AY2: I10 | AZ2: I11 | BA2: I12 | BB2: I13 | BC2: I15 | BD2: I16 | BE2: I17 | BF2: I18 | BG2: I18A | BH2: I18B | BI2: I18C | BJ2: I01 + I03 | BK2: HN12 | BL2: HN3U | BM2: HNOU | BN2: HNTU | BO2: HNUT | BP2: AN Total | BQ2: HNMT | BR2: HN3M | BS2: AM Total
A3: 4026 | B3: Dartford Science & Technology College | C3: 736 | D3: 131 | E3: 0 | F3: 3185746.29 | G3: 13980.88 | H3: 710863.66 | I3: 180112.5 | J3: 329844.53 | K3: 0 | L3: 2135.64 | M3: 7575.89 | N3: 11798.43 | O3: 1496.37 | P3: 3504.96 | Q3: 81042.89 | R3: 24695.64 | S3: 10004.36 | T3: 13319.94 | U3: 195374.84 | V3: 131328 | W3: 52027.17 | X3: 162527.29 | Y3: 38437.7 | Z3: 80004.32 | AA3: 54338.04 | AB3: 21448.36 | AC3: 0 | AD3: 49558.57 | AE3: 44989.99 | AF3: 85585.15 | AG3: 37449.33 | AH3: 0 | AI3: 0 | AJ3: 253831.97 | AK3: 0 | AL3: 0 | AM3: =BJ3-AN3-AO3-AP3 -> -4108663.33 | AN3: -518897.01 | AO3: =BP3 -> 0 | AP3: =BS3 -> -160410.99 | AQ3: -617478.89 | AR3: 0 | AS3: -163834.5 | AT3: 0 | AU3: -47864 | AV3: -99971 | AW3: -55846.76 | AX3: 0 | AY3: 0 | AZ3: 0 | BA3: 0 | BB3: -27785.1 | BC3: 0 | BD3: 0 | BE3: 0 | BF3: 0 | BG3: 0 | BH3: 0 | BI3: -45910.94 | BJ3: -4787971.33 | BK3: 0 | BL3: 0 | BM3: 0 | BN3: 0 | BO3: 0 | BP3: =-SUM(BK3:BO3) -> 0 | BQ3: 0 | BR3: 160410.99 | BS3: =-SUM(BQ3:BR3) -> -160410.99
A4: 4040 | B4: Northfleet School for Girls | C4: 928 | D4: 247 | E4: 0 | F4: 4188428.7 | G4: 0 | H4: 1024261.4 | I4: 165489.56 | J4: 354587.07 | K4: 150068.03 | L4: 31933.89 | M4: 34668.38 | N4: 32503.52 | O4: 1818.88 | P4: 31554.24 | Q4: 235928.93 | R4: 26223.68 | S4: 194808.28 | T4: 15317.88 | U4: 134446.89 | V4: 27136 | W4: 36961.81 | X4: 389720.18 | Y4: 162385.1 | Z4: 133173.48 | AA4: 47951.18 | AB4: 28897.48 | AC4: 19547.11 | AD4: 292886.8 | AE4: 116417.9 | AF4: 94735.89 | AG4: 22609.56 | AH4: 0 | AI4: 9811.6 | AJ4: 89845 | AK4: 0 | AL4: 0 | AM4: -4885012.11 | AN4: -933432.29 | AO4: =BP4 -> 0 | AP4: =BS4 -> -20656.6 | AQ4: -1141070.96 | AR4: 0 | AS4: -336060 | AT4: -9000 | AU4: -94998.68 | AV4: -59022.41 | AW4: -59864.98 | AX4: -327893.14 | AY4: -19903.16 | AZ4: -19790 | BA4: -105370.78 | BB4: -48072.3 | BC4: 0 | BD4: 0 | BE4: 0 | BF4: 0 | BG4: 0 | BH4: -8814.84 | BI4: -138654.35 | BJ4: -5839101 | BK4: 0 | BL4: 0 | BM4: 0 | BN4: 0 | BO4: 0 | BP4: =-SUM(BK4:BO4) -> 0 | BQ4: 0 | BR4: 20656.6 | BS4: =-SUM(BQ4:BR4) -> -20656.6
A5: 4043 | B5: Tunbridge Wells Girls' Grammar School | C5: 730 | D5: 255 | E5: 0 | F5: 3500073.86 | G5: 0 | H5: 480320.59 | I5: 87477.62 | J5: 377471 | K5: 0 | L5: 3133.19 | M5: 26802.82 | N5: 25918.3 | O5: 1430.8 | P5: 25278.6 | Q5: 148091.55 | R5: 67161.29 | S5: 138885.91 | T5: 11839.09 | U5: 149146.77 | V5: 48895.75 | W5: 45691.43 | X5: 352448.38 | Y5: 98580.14 | Z5: 109504.66 | AA5: 75525.28 | AB5: 24558.94 | AC5: 0 | AD5: 11358.71 | AE5: 19748.56 | AF5: 77881.5 | AG5: 51358.52 | AH5: 0 | AI5: 0 | AJ5: 300000 | AK5: 0 | AL5: 0 | AM5: -3832738.84 | AN5: -456707.16 | AO5: 0 | AP5: -73915.19 | AQ5: -1394442.52 | AR5: 0 | AS5: -28860 | AT5: 0 | AU5: -13247.04 | AV5: 0 | AW5: -2480.23 | AX5: 0 | AY5: 0 | AZ5: 0 | BA5: 0 | BB5: -199783.45 | BC5: 0 | BD5: 0 | BE5: 0 | BF5: 0 | BG5: 0 | BH5: -13903.22 | BI5: -15140.23 | BJ5: -4363361.19 | BK5: 0 | BL5: 0 | BM5: 0 | BN5: 0 | BO5: 0 | BP5: 0 | BQ5: 0 | BR5: 73915.19 | BS5: -73915.19
A6: 4045 | B6: Tunbridge Wells Grammar School for Boys | C6: 1176 | D6: 346 | E6: 0 | F6: 4902588.96 | G6: 0 | H6: 751881.61 | I6: 181033.48 | J6: 591176.23 | K6: 0 | L6: 34569.84 | M6: 81167.74 | N6: 12370.29 | O6: 2304.96 | P6: 6177.96 | Q6: 720902.66 | R6: 32155.63 | S6: 213449.3 | T6: 13644.01 | U6: 202019.92 | V6: 246801.53 | W6: 42059.04 | X6: 558265.96 | Y6: 282314.96 | Z6: 135024.65 | AA6: 47558.07 | AB6: 36154.44 | AC6: 4617.39 | AD6: 24545.43 | AE6: 143651.51 | AF6: 119217.55 | AG6: 67862.42 | AH6: 0 | AI6: 28833.1 | AJ6: 75834 | AK6: 0 | AL6: 0 | AM6: -6465936.98 | AN6: -813701.58 | AO6: 0 | AP6: -30077.35 | AQ6: -1486045.38 | AR6: 0 | AS6: -63360 | AT6: 0 | AU6: -14669.02 | AV6: -192490.55 | AW6: -35569.41 | AX6: -25000 | AY6: 0 | AZ6: 0 | BA6: -308991.79 | BB6: -133412.7 | BC6: 0 | BD6: 0 | BE6: 0 | BF6: 0 | BG6: 0 | BH6: -16464.8 | BI6: -29189.4 | BJ6: -7309715.91 | BK6: 0 | BL6: 0 | BM6: 0 | BN6: 0 | BO6: 0 | BP6: 0 | BQ6: 0 | BR6: 30077.35 | BS6: -30077.35
A7: 4109 | B7: Dover Grammar School for Girls | C7: 689 | D7: 207 | E7: 0 | F7: 3455375.39 | G7: 32412.43 | H7: 439048.23 | I7: 161685.69 | J7: 358440.61 | K7: 0 | L7: 14534.64 | M7: 18448.52 | N7: 20124.09 | O7: 1350.44 | P7: 23492.88 | Q7: 79810.32 | R7: 2362.5 | S7: 20346.7 | T7: 3593.13 | U7: 77140.31 | V7: 79872 | W7: 20641.22 | X7: 151659.8 | Y7: 171797.23 | Z7: 146363.93 | AA7: 60189.94 | AB7: 21715.97 | AC7: 0 | AD7: 37124.4 | AE7: 20175 | AF7: 53630 | AG7: 33142.01 | AH7: 0 | AI7: 8537.57 | AJ7: 0 | AK7: 0 | AL7: 0 | AM7: -3670324.16 | AN7: -390904.89 | AO7: 0 | AP7: -27888.78 | AQ7: -1126507.66 | AR7: 0 | AS7: -115583.5 | AT7: 0 | AU7: -17046.88 | AV7: 0 | AW7: -28745.01 | AX7: 0 | AY7: 0 | AZ7: 0 | BA7: -8180.96 | BB7: -2 | BC7: 0 | BD7: 0 | BE7: 0 | BF7: 0 | BG7: 0 | BH7: -11112.86 | BI7: -49439.48 | BJ7: -4089117.83 | BK7: 0 | BL7: 0 | BM7: 0 | BN7: 0 | BO7: 0 | BP7: 0 | BQ7: 0 | BR7: 27888.78 | BS7: -27888.78
A8: 4522 | B8: Maidstone Grammar School | C8: 1055 | D8: 377 | E8: 0 | F8: 4385922.74 | G8: 0 | H8: 685602.14 | I8: 185939.65 | J8: 372168.59 | K8: 0 | L8: 19248.8 | M8: 62822.08 | N8: 22720.61 | O8: 2067.8 | P8: 36268.68 | Q8: 183819.71 | R8: 56402.52 | S8: 145596.86 | T8: 45451.65 | U8: 218714.85 | V8: 35840 | W8: 75590.13 | X8: 481691.18 | Y8: 241705.11 | Z8: 176136.86 | AA8: 84479.7 | AB8: 36874.72 | AC8: 58025.56 | AD8: 256694.21 | AE8: 51253.51 | AF8: 42221.08 | AG8: 76264.11 | AH8: 0 | AI8: 0 | AJ8: 1083635.9 | AK8: 0 | AL8: 0 | AM8: -5431228.33 | AN8: -699138.77 | AO8: 0 | AP8: -6693.9 | AQ8: -1895987.96 | AR8: 0 | AS8: -77750 | AT8: 0 | AU8: -1992.5 | AV8: -91788.46 | AW8: -52558.17 | AX8: -210728.16 | AY8: 0 | AZ8: -1005 | BA8: -201351.52 | BB8: -144885.13 | BC8: 0 | BD8: 0 | BE8: 0 | BF8: 0 | BG8: 0 | BH8: -2018.64 | BI8: -25571.17 | BJ8: -6137061 | BK8: 0 | BL8: 0 | BM8: 0 | BN8: 0 | BO8: 0 | BP8: 0 | BQ8: 0 | BR8: 6693.9 | BS8: -6693.9
A9: 4523 | B9: Maidstone Grammar School for Girls | C9: 879 | D9: 324 | E9: 0 | F9: 3880330.32 | G9: 0 | H9: 497949.03 | I9: 99131.89 | J9: 451711.81 | K9: 0 | L9: 14745.33 | M9: 51534.32 | N9: 21086.53 | O9: 1722.84 | P9: 30019.8 | Q9: 38475.57 | R9: 8202.57 | S9: 182739.05 | T9: 44150.37 | U9: 176575.83 | V9: 35328 | W9: 42814.8 | X9: 306167.6 | Y9: 92118.86 | Z9: 141476.43 | AA9: 58330.61 | AB9: 28012.71 | AC9: 230474.67 | AD9: 35067.73 | AE9: 86661.74 | AF9: 44912.77 | AG9: 45160.36 | AH9: 0 | AI9: 0 | AJ9: 338995.7 | AK9: 0 | AL9: 0 | AM9: -4566857.54 | AN9: -551308.46 | AO9: 0 | AP9: 0 | AQ9: -1560753.29 | AR9: 0 | AS9: -81830 | AT9: 0 | AU9: -178484.07 | AV9: -237984.36 | AW9: 0 | AX9: -10938.8 | AY9: 0 | AZ9: -34702.03 | BA9: -131806.62 | BB9: -3005.5 | BC9: 0 | BD9: 0 | BE9: 0 | BF9: 0 | BG9: 0 | BH9: -11394.1 | BI9: -27500.55 | BJ9: -5118166 | BK9: 0 | BL9: 0 | BM9: 0 | BN9: 0 | BO9: 0 | BP9: 0 | BQ9: 0 | BR9: 0 | BS9: 0
A10: 4534 | B10: Simon Langton Girls' Grammar School | C10: 874 | D10: 358 | E10: 0 | F10: 4264805.56 | G10: 0 | H10: 574649.33 | I10: 117856.33 | J10: 458592.96 | K10: 107897.87 | L10: 28127.39 | M10: 18136.48 | N10: 26143 | O10: 1713.04 | P10: 28606.14 | Q10: 57726.24 | R10: 72561.12 | S10: 142679.9 | T10: 8408.33 | U10: 140864.67 | V10: 167783.88 | W10: 25628.07 | X10: 439148.4 | Y10: 40797.07 | Z10: 107279.56 | AA10: 86626.87 | AB10: 28768.06 | AC10: 13158.54 | AD10: 226889.03 | AE10: 13300 | AF10: 10175.46 | AG10: 77082.28 | AH10: 0 | AI10: 0 | AJ10: 172203.09 | AK10: 0 | AL10: 0 | AM10: -4667605.25 | AN10: -555417.96 | AO10: 0 | AP10: -48110.96 | AQ10: -1685641.09 | AR10: 0 | AS10: -84080 | AT10: -41622.2 | AU10: -17502.22 | AV10: -30209.79 | AW10: -34605.43 | AX10: -312138.28 | AY10: 0 | AZ10: -3478.51 | BA10: -141531.91 | BB10: -39244.6 | BC10: 0 | BD10: 0 | BE10: 0 | BF10: 0 | BG10: 0 | BH10: -7269.14 | BI10: -28759.02 | BJ10: -5271134.17 | BK10: 0 | BL10: 0 | BM10: 0 | BN10: 0 | BO10: 0 | BP10: 0 | BQ10: 0 | BR10: 48110.96 | BS10: -48110.96
A11: 4622 | B11: Judd School, The | C11: 952 | D11: 522 | E11: 15.5 | F11: 5047104.9 | G11: 0 | H11: 906137.62 | I11: 409026.07 | J11: 464747.49 | K11: 0 | L11: 0 | M11: 44765.94 | N11: 24755.87 | O11: 1865.92 | P11: 0 | Q11: 349295.44 | R11: 52089.05 | S11: 23194.02 | T11: 14650.2 | U11: 127519.57 | V11: 54272 | W11: 25830.49 | X11: 1073253.74 | Y11: 153317.66 | Z11: 205796.63 | AA11: 55607.58 | AB11: 76416.12 | AC11: 0 | AD11: 42118.01 | AE11: 27910.5 | AF11: 0 | AG11: 91007.86 | AH11: 0 | AI11: 8534.67 | AJ11: 0 | AK11: 0 | AL11: 0 | AM11: -4949483.26 | AN11: -631915.52 | AO11: -259438.69 | AP11: -5542.61 | AQ11: -2499457.31 | AR11: 0 | AS11: -28170 | AT11: -3636.4 | AU11: -13245.12 | AV11: -44174.31 | AW11: -157930.54 | AX11: 0 | AY11: 0 | AZ11: -5220 | BA11: 0 | BB11: -626369.72 | BC11: 0 | BD11: 0 | BE11: 0 | BF11: 0 | BG11: 0 | BH11: -11398.94 | BI11: -21996.4 | BJ11: -5846380.08 | BK11: 0 | BL11: 144105.36 | BM11: 17333.33 | BN11: 98000 | BO11: 0 | BP11: -259438.69 | BQ11: 0 | BR11: 5542.61 | BS11: -5542.61
A12: 5407 | B12: Thamesview School | C12: 875 | D12: 71 | E12: 6 | F12: 3339539.87 | G12: 0 | H12: 1027977.03 | I12: 27367.63 | J12: 350752.25 | K12: 0 | L12: 58232.38 | M12: 34186.04 | N12: 76338.38 | O12: 1715 | P12: 28593.96 | Q12: 171799.9524 | R12: 25527.86951 | S12: 166732.4469 | T12: 11481.80445 | U12: 144131.1086 | V12: 37376 | W12: 5930.83 | X12: 184556.82 | Y12: 70302.65 | Z12: 98802.59 | AA12: 45841.36 | AB12: 65424.5254 | AC12: 23018.73 | AD12: 52570.4 | AE12: 256605.28 | AF12: 166765.15 | AG12: 1183544.733 | AH12: 0 | AI12: 0 | AJ12: 56502.82 | AK12: 0 | AL12: 0 | AM12: -5683818.1 | AN12: -967410.81 | AO12: -135615.76 | AP12: -107386.22 | AQ12: -174743.94 | AR12: 0 | AS12: -356425 | AT12: 0 | AU12: -100903.41 | AV12: -2364.93 | AW12: 0 | AX12: 0 | AY12: 0 | AZ12: -16244.15 | BA12: -1380 | BB12: 0 | BC12: 0 | BD12: 0 | BE12: 0 | BF12: 0 | BG12: 0 | BH12: -8625.26 | BI12: -101999.3 | BJ12: -6894230.89 | BK12: 0 | BL12: 65615.76 | BM12: 16000 | BN12: 54000 | BO12: 0 | BP12: -135615.76 | BQ12: 0 | BR12: 107386.22 | BS12: -107386.22
A13: 5412 | B13: Simon Langton Grammar School for Boys | C13: 755 | D13: 474 | E13: 36.5 | F13: 4609286.42 | G13: 0 | H13: 847319.48 | I13: 276371.43 | J13: 322054.88 | K13: 203591 | L13: 61885.94 | M13: 44297.41 | N13: 17877.07 | O13: 1479.8 | P13: 26638.68 | Q13: 81020.86 | R13: 50787.13 | S13: 5982.88 | T13: 40266.21 | U13: 342004.99 | V13: 32256 | W13: 39293.99 | X13: 571358.45 | Y13: 182101.96 | Z13: 240219.86 | AA13: 69137.65 | AB13: 30547.46 | AC13: 11137.98 | AD13: 227141.2 | AE13: 14084.46 | AF13: 10028.25 | AG13: 112020.63 | AH13: 0 | AI13: 25851.84 | AJ13: 118596 | AK13: 0 | AL13: 0 | AM13: -4100694.8 | AN13: -484753.7 | AO13: -540836.06 | AP13: -26032.17 | AQ13: -2554643.88 | AR13: 0 | AS13: -38537.5 | AT13: -1200 | AU13: -113243.26 | AV13: -119999.28 | AW13: -124122.93 | AX13: -334071.98 | AY13: -17194.24 | AZ13: 0 | BA13: -428820.31 | BB13: -913.41 | BC13: 0 | BD13: 0 | BE13: 0 | BF13: 0 | BG13: 0 | BH13: -2047.26 | BI13: -24482.12 | BJ13: -5152316.73 | BK13: 39000 | BL13: 316836.06 | BM13: 0 | BN13: 185000 | BO13: 0 | BP13: -540836.06 | BQ13: 0 | BR13: 26032.17 | BS13: -26032.17
A14: 5425 | B14: Malling School, The | C14: 915 | D14: 106 | E14: 120.0833333 | F14: 4769662.29 | G14: 1142.42 | H14: 1229371.45 | I14: 0 | J14: 427802.73 | K14: 0 | L14: 31668.11 | M14: 53360.62 | N14: 35068.93 | O14: 1793.4 | P14: 30212.52 | Q14: 70228.58758 | R14: 34806.70945 | S14: 129952.5519 | T14: 5856.826383 | U14: 107768.2343 | V14: 33792 | W14: 5796.45 | X14: 525457.93 | Y14: 142374.48 | Z14: 117501.22 | AA14: 68102.49 | AB14: 57313.06395 | AC14: 999221.9182 | AD14: 51608.79611 | AE14: 13260 | AF14: 89190.89 | AG14: 137482.7621 | AH14: 0 | AI14: 0 | AJ14: 132231.92 | AK14: 0 | AL14: 0 | AM14: -5558566.34 | AN14: -774104.63 | AO14: -1420251.8 | AP14: -178089.12 | AQ14: -710730.45 | AR14: 0 | AS14: -249542.5 | AT14: -71943.51 | AU14: -88137.05 | AV14: -39399.96 | AW14: -13408.27 | AX14: 0 | AY14: 0 | AZ14: -27525.97 | BA14: -22694.41 | BB14: -17772.11 | BC14: 0 | BD14: 0 | BE14: 0 | BF14: 0 | BG14: 0 | BH14: -1834.48 | BI14: -142375.2 | BJ14: -7931011.89 | BK14: 10500 | BL14: 633751.8 | BM14: 56000 | BN14: 600000 | BO14: 120000 | BP14: -1420251.8 | BQ14: 0 | BR14: 178089.12 | BS14: -178089.12
A15: 5426 | B15: Archbishop's School, The | C15: 576 | D15: 99 | E15: 4 | F15: 2787423.72 | G15: 12505.93 | H15: 759405.32 | I15: 224771.69 | J15: 333093.69 | K15: 0 | L15: 0 | M15: 1529.99 | N15: 31938.89 | O15: 1128.96 | P15: 19097.52 | Q15: 66758.79 | R15: 5000 | S15: 3164.02 | T15: 14150.93 | U15: 124513.7 | V15: 19558.4 | W15: 15431.57 | X15: 161069.13 | Y15: 29987.65 | Z15: 58057.05 | AA15: 44477.13 | AB15: 16328.52 | AC15: 44821.23 | AD15: 137969.83 | AE15: 367256.13 | AF15: 254594.6 | AG15: 26985.07 | AH15: 0 | AI15: 927.88 | AJ15: 223264 | AK15: 0 | AL15: 0 | AM15: -3301360.21 | AN15: -705680.49 | AO15: -91188.12 | AP15: -55200.11 | AQ15: -313541.72 | AR15: 0 | AS15: -273433.4 | AT15: 0 | AU15: -469710.98 | AV15: -14780 | AW15: -27212.67 | AX15: -17801.42 | AY15: 0 | AZ15: -20125.54 | BA15: -31022.73 | BB15: -5461.25 | BC15: 0 | BD15: 0 | BE15: 0 | BF15: 0 | BG15: 0 | BH15: -7207.46 | BI15: -105454.2 | BJ15: -4153428.93 | BK15: 0 | BL15: 37188.12 | BM15: 12000 | BN15: 42000 | BO15: 0 | BP15: -91188.12 | BQ15: 0 | BR15: 55200.11 | BS15: -55200.11
A16: 5431 | B16: Hugh Christie Technology College | C16: 770 | D16: 167 | E16: 19.91666667 | F16: 3693496.23 | G16: 19052.02 | H16: 629441.19 | I16: 0 | J16: 326986.49 | K16: 0 | L16: 51585.11 | M16: 18037.14 | N16: 14962.22 | O16: 1509.2 | P16: 3635.4 | Q16: 143133.3721 | R16: 48847.9512 | S16: 137648.9683 | T16: 14689.75357 | U16: 102764.1899 | V16: 44544 | W16: 0 | X16: 321894.41 | Y16: 104678.95 | Z16: 142054.54 | AA16: 148225.4 | AB16: 58997.49239 | AC16: 1171744.164 | AD16: 55389.07264 | AE16: 65051.5 | AF16: 325261.9 | AG16: 47400.59551 | AH16: 0 | AI16: 470.25 | AJ16: 0 | AK16: 0 | AL16: 0 | AM16: -5071219.64 | AN16: -711603.92 | AO16: -331507.26 | AP16: -41163.15 | AQ16: -795281.66 | AR16: 0 | AS16: -273820 | AT16: 0 | AU16: -196264.4 | AV16: 0 | AW16: -133724.01 | AX16: 0 | AY16: 0 | AZ16: 0 | BA16: -173962.25 | BB16: -1388.44 | BC16: 0 | BD16: 0 | BE16: 0 | BF16: 0 | BG16: 0 | BH16: -7168.82 | BI16: -102108.58 | BJ16: -6155493.97 | BK16: 0 | BL16: 175507.26 | BM16: 24000 | BN16: 132000 | BO16: 0 | BP16: -331507.26 | BQ16: 0 | BR16: 41163.15 | BS16: -41163.15
A17: 5447 | B17: St George's CE Foundation School | C17: 1081 | D17: 132 | E17: 0 | F17: 5748444.55 | G17: 0 | H17: 1191767.51 | I17: 382284.21 | J17: 512355.83 | K17: 163188.4 | L17: 56855 | M17: 47884.3 | N17: 13324.35 | O17: 2881.2 | P17: 205.58 | Q17: 120654.14 | R17: 11019.42 | S17: 27088.14 | T17: 11682 | U17: 248562.9 | V17: 69380 | W17: 37625.96 | X17: 380345.77 | Y17: 172620.44 | Z17: 138290.06 | AA17: 75547.13 | AB17: 55091.61 | AC17: 0 | AD17: 181907.86 | AE17: 44520.69 | AF17: 220674.17 | AG17: 78340.33 | AH17: 0 | AI17: 0 | AJ17: 545928 | AK17: 0 | AL17: 0 | AM17: -7030251.71 | AN17: -1369628.37 | AO17: 0 | AP17: -172249.65 | AQ17: -758803.03 | AR17: 0 | AS17: -573355.83 | AT17: 0 | AU17: -126612.78 | AV17: -29683.75 | AW17: -60714.19 | AX17: -157998.27 | AY17: 0 | AZ17: -6163.3 | BA17: -28599.75 | BB17: -20 | BC17: 0 | BD17: 0 | BE17: 0 | BF17: -82390 | BG17: 0 | BH17: -10422.94 | BI17: -155896.89 | BJ17: -8572129.73 | BK17: 0 | BL17: 0 | BM17: 0 | BN17: 0 | BO17: 0 | BP17: 0 | BQ17: 0 | BR17: 172249.65 | BS17: -172249.65
A18: 5456 | B18: Northfleet Technology College | C18: 787 | D18: 155 | E18: 0 | F18: 3572195.54 | G18: 14023.75 | H18: 860502.62 | I18: 0 | J18: 341144.01 | K18: 0 | L18: 0 | M18: 50864.29 | N18: 49132.15 | O18: 1542.52 | P18: 26139.72 | Q18: 103582.3143 | R18: 22824.6952 | S18: 146862.7564 | T18: 13060.80897 | U18: 124885.5873 | V18: 34560 | W18: 10946.71 | X18: 287886.5 | Y18: 68122.19 | Z18: 157764.87 | AA18: 46801.7 | AB18: 41022.31923 | AC18: 985168.8046 | AD18: 59469.12386 | AE18: 103455.63 | AF18: 82376.93 | AG18: 54368.56028 | AH18: 0 | AI18: 0 | AJ18: 107826.97 | AK18: 0 | AL18: 0 | AM18: -5117807.25 | AN18: -884161.21 | AO18: 0 | AP18: -59299.76 | AQ18: -802130.33 | AR18: 0 | AS18: -263455 | AT18: -57571.2 | AU18: -69862.63 | AV18: 0 | AW18: -29434.09 | AX18: 0 | AY18: 0 | AZ18: -25924.95 | BA18: 0 | BB18: 0 | BC18: 0 | BD18: 0 | BE18: 0 | BF18: 0 | BG18: 0 | BH18: -7812.74 | BI18: -86875.08 | BJ18: -6061268.22 | BK18: 0 | BL18: 0 | BM18: 0 | BN18: 0 | BO18: 0 | BP18: 0 | BQ18: 0 | BR18: 59299.76 | BS18: -59299.76
A19: 5459 | B19: Dover Grammar School for Boys | C19: 663 | D19: 165 | E19: 0 | F19: 3077411.97 | G19: 10517.97 | H19: 430321.95 | I19: 195681.45 | J19: 289130.24 | K19: 0 | L19: 0 | M19: 4323.84 | N19: 14205.62 | O19: 1299.48 | P19: 22352.88 | Q19: 58654.31 | R19: 22933.04 | S19: 6797.67 | T19: 56964.81 | U19: 59414.67 | V19: 17818 | W19: 11647.3 | X19: 123333.13 | Y19: 97846.91 | Z19: 90327.48 | AA19: 65260.83 | AB19: 19882.95 | AC19: 14087.99 | AD19: 47467 | AE19: 14060 | AF19: 61138.7 | AG19: 58782.92 | AH19: 0 | AI19: 0 | AJ19: 47052.27 | AK19: 0 | AL19: 0 | AM19: -3464441.18 | AN19: -369523.91 | AO19: 0 | AP19: -37805.77 | AQ19: -650772.34 | AR19: 0 | AS19: -128342.5 | AT19: -3814.8 | AU19: -1817.5 | AV19: 0 | AW19: -100981 | AX19: -2223.54 | AY19: 0 | AZ19: -17220.55 | BA19: -15647.3 | BB19: -14988.5 | BC19: 0 | BD19: 0 | BE19: 0 | BF19: 0 | BG19: 0 | BH19: -1591.66 | BI19: -43883.38 | BJ19: -3871770.86 | BK19: 0 | BL19: 0 | BM19: 0 | BN19: 0 | BO19: 0 | BP19: 0 | BQ19: 0 | BR19: 37805.77 | BS19: -37805.77
A20: 5461 | B20: St John's RC Comprehensive School | C20: 961 | D20: 331 | E20: 0 | F20: 5352664.32 | G20: 0 | H20: 864889.19 | I20: 0 | J20: 225905.66 | K20: 0 | L20: 39260.99 | M20: 56778.66 | N20: 16581.81 | O20: 1883.56 | P20: 32341.68 | Q20: 171540.6768 | R20: 23198.46625 | S20: 192937.9038 | T20: 14579.81911 | U20: 166629.0997 | V20: 52933.72 | W20: 26227.41 | X20: 192931.29 | Y20: 110556.01 | Z20: 174622.51 | AA20: 80056.35 | AB20: 81704.06683 | AC20: 1220321.887 | AD20: 73672.60256 | AE20: 87598.94 | AF20: 65271.94 | AG20: 66943.54749 | AH20: 0 | AI20: 0 | AJ20: 10346 | AK20: 0 | AL20: 0 | AM20: -6332114.1 | AN20: -926384.17 | AO20: 0 | AP20: -83151.47 | AQ20: -1706975.18 | AR20: 0 | AS20: -251198.93 | AT20: -14818.1 | AU20: -85816.87 | AV20: 0 | AW20: -25361.47 | AX20: 0 | AY20: 0 | AZ20: -33990.31 | BA20: 0 | BB20: -1250 | BC20: 0 | BD20: 0 | BE20: 0 | BF20: 0 | BG20: 0 | BH20: -21511.54 | BI20: -90362.96 | BJ20: -7341649.74 | BK20: 0 | BL20: 0 | BM20: 0 | BN20: 0 | BO20: 0 | BP20: 0 | BQ20: 0 | BR20: 83151.47 | BS20: -83151.47
C22: 6 | F22: E01 | G22: E02 | H22: E03 | I22: E04 | J22: E05 | K22: E06 | L22: E07 | M22: E08 | N22: E09 | O22: E10 | P22: E11 | Q22: E12 | R22: E13 | S22: E14 | T22: E15 | U22: E16 | V22: E17 | W22: E18 | X22: E19 | Y22: E20 | Z22: E21 | AA22: E22 | AB22: E23 | AC22: E24 | AD22: E25 | AE22: E26 | AF22: E27 | AG22: E28 | AH22: E28B | AI22: E29 | AJ22: E30 | AK22: E31 | AL22: E32 | AM22: =IF(ISERROR(SUM('2022-23 Data'!AM$3:AM$20)/SUM('2022-23 Data'!$C$3:$D$20)),"",SUM('2022-23 Data'!AM$3:AM$20)/SUM('2022-23 Data'!$C$3:$D$20)) -> -4440.994672 | AN22: -347.207897 | AQ22: I02 | AR22: I04 | AS22: I05 | AT22: I06 | AU22: I07 | AV22: I08 | AW22: I08b | AX22: I09 | AY22: I10 | AZ22: I11 | BA22: I12 | BB22: I13 | BC22: I15 | BD22: I16 | BE22: I17 | BF22: I18 | BG22: I18A | BH22: I18B | BI22: I18C | BJ22: I01 | BK22: I03
C23: 7 | F23: 35 | G23: 36 | H23: 37 | I23: 38 | J23: 39 | K23: 40 | L23: 41 | M23: 42 | N23: 43 | O23: 44 | P23: 45 | Q23: 46 | R23: 47 | S23: 48 | T23: 49 | U23: 50 | V23: 51 | W23: 52 | X23: 53 | Y23: 54 | Z23: 55 | AA23: 56 | AB23: 57 | AC23: 58 | AD23: 59 | AE23: 60 | AF23: 61 | AG23: 62 | AH23: 63 | AI23: 64 | AJ23: 65 | AK23: 66 | AL23: 67 | AQ23: 73 | AR23: 75 | AS23: 76 | AT23: 77 | AU23: 78 | AV23: 79 | AW23: 80 | AX23: 81 | AY23: 82 | AZ23: 83 | BA23: 84 | BB23: 85 | BC23: 87 | BD23: 88 | BE23: 89 | BF23: 90 | BG23: 91 | BH23: 92 | BI23: 93 | BJ23: 72 | BK23: 74
B25: PFI Breakdown | Q25: E12 | R25: E13 | S25: E14 | T25: E15 | U25: E16 | AB25: E23 | AC25: E24 | AD25: E25 | AG25: E28 | AH25: E28B
A26: 5407 | B26: Thamesview School | Q26: ='PFI Adjustments'!D16 -> 171799.9524 | R26: ='PFI Adjustments'!E16 -> 25527.86951 | S26: ='PFI Adjustments'!F16 -> 166732.4469 | T26: ='PFI Adjustments'!G16 -> 11481.80445 | U26: ='PFI Adjustments'!H16 -> 144131.1086 | AB26: ='PFI Adjustments'!I16 -> 65424.5254 | AC26: ='PFI Adjustments'!J16 -> 23018.73 | AD26: ='PFI Adjustments'!K16 -> 52570.4 | AG26: ='PFI Adjustments'!L16 -> 1183544.733 | AH26: 0
A27: 5425 | B27: The Malling School | Q27: ='PFI Adjustments'!D17 -> 70228.58758 | R27: ='PFI Adjustments'!E17 -> 34806.70945 | S27: ='PFI Adjustments'!F17 -> 129952.5519 | T27: ='PFI Adjustments'!G17 -> 5856.826383 | U27: ='PFI Adjustments'!H17 -> 107768.2343 | AB27: ='PFI Adjustments'!I17 -> 57313.06395 | AC27: ='PFI Adjustments'!J17 -> 999221.9182 | AD27: ='PFI Adjustments'!K17 -> 51608.79611 | AG27: ='PFI Adjustments'!L17 -> 137482.7621 | AH27: 0
A28: 5431 | B28: Hugh Christie Technology College | Q28: ='PFI Adjustments'!D18 -> 143133.3721 | R28: ='PFI Adjustments'!E18 -> 48847.9512 | S28: ='PFI Adjustments'!F18 -> 137648.9683 | T28: ='PFI Adjustments'!G18 -> 14689.75357 | U28: ='PFI Adjustments'!H18 -> 102764.1899 | AB28: ='PFI Adjustments'!I18 -> 58997.49239 | AC28: ='PFI Adjustments'!J18 -> 1171744.164 | AD28: ='PFI Adjustments'!K18 -> 55389.07264 | AG28: ='PFI Adjustments'!L18 -> 47400.59551 | AH28: 0
A29: 5456 | B29: Northfleet Technology College | Q29: ='PFI Adjustments'!D19 -> 103582.3143 | R29: ='PFI Adjustments'!E19 -> 22824.6952 | S29: ='PFI Adjustments'!F19 -> 146862.7564 | T29: ='PFI Adjustments'!G19 -> 13060.80897 | U29: ='PFI Adjustments'!H19 -> 124885.5873 | AB29: ='PFI Adjustments'!I19 -> 41022.31923 | AC29: ='PFI Adjustments'!J19 -> 985168.8046 | AD29: ='PFI Adjustments'!K19 -> 59469.12386 | AG29: ='PFI Adjustments'!L19 -> 54368.56028 | AH29: 0
A30: 5461 | B30: St Johns RC Comprehensive School | Q30: ='PFI Adjustments'!D20 -> 171540.6768 | R30: ='PFI Adjustments'!E20 -> 23198.46625 | S30: ='PFI Adjustments'!F20 -> 192937.9038 | T30: ='PFI Adjustments'!G20 -> 14579.81911 | U30: ='PFI Adjustments'!H20 -> 166629.0997 | AB30: ='PFI Adjustments'!I20 -> 81704.06683 | AC30: ='PFI Adjustments'!J20 -> 1220321.887 | AD30: ='PFI Adjustments'!K20 -> 73672.60256 | AG30: ='PFI Adjustments'!L20 -> 66943.54749 | AH30: 0

Sheet PFI Adjustments (hidden)
A1: PFI Breakdown | D1: E12 | E1: E13 | F1: E14 | G1: E15 | H1: E16 | I1: E23 | J1: E24 | K1: E25 | L1: E28
A2: 5407 | B2: Thamesview School | D2: 26046.87 | E2: 0 | F2: 0 | G2: 0 | H2: 16648.72 | I2: 23542.49 | J2: 23018.73 | K2: 52570.4 | L2: 39663.7
A3: 5425 | B3: The Malling School | D3: 3394.04 | E3: 7528.15 | F3: 463.2 | G3: 0 | H3: 0 | I3: 25008.51 | J3: 36926.03 | K3: 9156.02 | L3: 70950.9
A4: 5431 | B4: Hugh Christie Technology College | D4: 49395.64 | E4: 10533.38 | F4: 335.83 | G4: 0 | H4: 0 | I4: 22283.7 | J4: 161502.03 | K4: 1150.27 | L4: 19249.19
A5: 5456 | B5: Northfleet Technology College | D5: 8493.7 | E5: 0 | F5: 766.69 | G5: 90.68 | H5: 4220.48 | I5: 22026.31 | J5: 0 | K5: 2029.75 | L5: 44368.53
A6: 5461 | B6: St Johns RC Comprehensive School | D6: 55893.63 | E6: 0 | F6: 0 | G6: 0 | H6: 0 | I6: 28586.53 | J6: 60.77 | K6: 8588.56 | L6: 24631.83
N8: Standard percentage figures for 2014-15 to 2017-18
A9: PFI Breakdown | C9: ="E28B total from"&CHAR(10)&" 20"&RIGHT(Benchmarking!C1,5)&CHAR(10)&" Checking Spreadsheet" -> E28B total from 2022-23 Checking Spreadsheet | D9: E12 | E9: E13 | F9: E14 | G9: E15 | H9: E16 | I9: E23 | J9: E24 | K9: E25 | L9: E28 | N9: E12 | O9: E13 | P9: E14 | Q9: E15 | R9: E16 | S9: E23 | T9: E24 | U9: E25 | V9: E28 | W9: Comments
A10: 5407 | B10: Thamesview School | C10: 1662740.66 | D10: =$C10*N10 -> 145753.0824 | E10: =$C10*O10 -> 25527.86951 | F10: =$C10*P10 -> 166732.4469 | G10: =$C10*Q10 -> 11481.80445 | H10: =$C10*R10 -> 127482.3886 | I10: =$C10*S10 -> 41882.0354 | J10: =$C10*T10 -> 0 | K10: =$C10*U10 -> 0 | L10: =$C10*V10 -> 1143881.033 | N10: 0.08765833775 | O10: 0.01535288703 | P10: 0.1002756779 | Q10: 0.00690534894 | R10: 0.0766700374 | S10: 0.0251885555 | T10: 0 | U10: 0 | V10: 0.6879491555 | W10: Supplied by School
A11: 5425 | B11: The Malling School | C11: 1440812.6 | D11: 66834.54758 | E11: 27278.55945 | F11: 129489.3519 | G11: 5856.826383 | H11: 107768.2343 | I11: 32304.55395 | J11: 962295.8882 | K11: 42452.77611 | L11: 66531.86214 | N11: 0.04638670399 | O11: 0.0189327602 | P11: 0.0898724455 | Q11: 0.004064946671 | R11: 0.07479684333 | S11: 0.02242106569 | T11: 0.6678841427 | U11: 0.02946446756 | V11: 0.04617662432 | W11: Calculation
A12: 5431 | B12: Hugh Christie Technology College | C12: 1516165.52 | D12: 93737.73211 | E12: 38314.5712 | F12: 137313.1383 | G12: 14689.75357 | H12: 102764.1899 | I12: 36713.79239 | J12: 1010242.134 | K12: 54238.80264 | L12: 28151.40551 | N12: 0.06182552688 | O12: 0.02527070475 | P12: 0.09056606055 | Q12: 0.009688753223 | R12: 0.06777900469 | S12: 0.02421489732 | T12: 0.6663138827 | U12: 0.03577366846 | V12: 0.01856750146 | W12: Calculation
A13: 5456 | B13: Northfleet Technology College | C13: 1469248.83 | D13: 95088.61426 | E13: 22824.6952 | F13: 146096.0664 | G13: 12970.12897 | H13: 120665.1073 | I13: 18996.00923 | J13: 985168.8046 | K13: 57439.37386 | L13: 10000.03028 | N13: 0.06471920367 | O13: 0.0155349419 | P13: 0.09943589089 | Q13: 0.008827727958 | R13: 0.08212707392 | S13: 0.01292906201 | T13: 0.6705254988 | U13: 0.03909438122 | V13: 0.006806219665 | W13: Supplied by School
A14: 5461 | B14: St Johns RC Comprehensive School | C14: 1893766.75 | D14: 115647.0468 | E14: 23198.46625 | F14: 192937.9038 | G14: 14579.81911 | H14: 166629.0997 | I14: 53117.53683 | J14: 1220261.117 | K14: 65084.04256 | L14: 42311.71749 | N14: 0.06106720738 | O14: 0.01224990683 | P14: 0.1018805002 | Q14: 0.007698846287 | R14: 0.08798818528 | S14: 0.02804861625 | T14: 0.644356607 | U14: 0.03436750728 | V14: 0.0223426235 | W14: Calculation
A16: 5407 | B16: Thamesview School | D16: =D2+D10 -> 171799.9524 | E16: 25527.86951 | F16: 166732.4469 | G16: 11481.80445 | H16: 144131.1086 | I16: 65424.5254 | J16: 23018.73 | K16: 52570.4 | L16: 1183544.733
A17: 5425 | B17: The Malling School | D17: =D3+D11 -> 70228.58758 | E17: 34806.70945 | F17: 129952.5519 | G17: 5856.826383 | H17: 107768.2343 | I17: 57313.06395 | J17: 999221.9182 | K17: 51608.79611 | L17: 137482.7621
A18: 5431 | B18: Hugh Christie Technology College | D18: =D4+D12 -> 143133.3721 | E18: 48847.9512 | F18: 137648.9683 | G18: 14689.75357 | H18: 102764.1899 | I18: 58997.49239 | J18: 1171744.164 | K18: 55389.07264 | L18: 47400.59551
A19: 5456 | B19: Northfleet Technology College | D19: =D5+D13 -> 103582.3143 | E19: 22824.6952 | F19: 146862.7564 | G19: 13060.80897 | H19: 124885.5873 | I19: 41022.31923 | J19: 985168.8046 | K19: 59469.12386 | L19: 54368.56028
A20: 5461 | B20: St Johns RC Comprehensive School | D20: =D6+D14 -> 171540.6768 | E20: 23198.46625 | F20: 192937.9038 | G20: 14579.81911 | H20: 166629.0997 | I20: 81704.06683 | J20: 1220321.887 | K20: 73672.60256 | L20: 66943.54749
